DepartmentFamily,Entity,Date,ExpenseType,ExpenseArea,Supplier,BNO,Amount,VATRegistrationNo
BEIS,The Insolvency Service,04/07/2017,Investigation and Enforcement Costs,CRIMINAL ENFORCEMENT                                                                                ,KCH Garden Square Barristers                                ,BA0000306215,372.00,143297900
BEIS,The Insolvency Service,04/07/2017,Accommodation,ESTATES,LAND REGISTRY TELFORD,BA0000306221,1570.38,
BEIS,The Insolvency Service,04/07/2017,Accommodation,ESTATES                                                                                             ,LAND REGISTRY TELFORD,BA0000306227,17907.59,
BEIS,The Insolvency Service,04/07/2017,Accommodation,ESTATES                                                                                             ,LAND REGISTRY TELFORD,BA0000306227,19579.43,
BEIS,The Insolvency Service,04/07/2017,Accommodation,ESTATES                                                                                             ,LAND REGISTRY TELFORD,BA0000306227,22076.33,
BEIS,The Insolvency Service,04/07/2017,Agency Workers,INFORMATION TECHNOLOGY                                                                              ,CONCEPT INFORMATION TECHNOLOGY LTD                          ,BA0000306220,2448.00,776147892
BEIS,The Insolvency Service,04/07/2017,Agency Workers,INFORMATION TECHNOLOGY                                                                              ,JUMAR SOLUTIONS LTD                                         ,BA0000306211,9360.00,                      
BEIS,The Insolvency Service,04/07/2017,Agency Workers,INFORMATION TECHNOLOGY                                                                              ,JUMAR SOLUTIONS LTD                                         ,BA0000306212,936.00,                      
BEIS,The Insolvency Service,04/07/2017,Insolvency Case Related Costs,OFFICIAL RECEIVER SERVICES                                                                          ,COMPANIES HOUSE,BA0000306222,4.00,GD255
BEIS,The Insolvency Service,04/07/2017,Insolvency Case Related Costs,OFFICIAL RECEIVER SERVICES                                                                          ,COMPANIES HOUSE,BA0000306223,4.00,GD255
BEIS,The Insolvency Service,04/07/2017,Insolvency Case Related Costs,OFFICIAL RECEIVER SERVICES                                                                          ,COMPANIES HOUSE,BA0000306224,4.00,GD255
BEIS,The Insolvency Service,04/07/2017,Insolvency Case Related Costs,OFFICIAL RECEIVER SERVICES                                                                          ,COMPANIES HOUSE,BA0000306225,4.00,GD255
BEIS,The Insolvency Service,04/07/2017,Insolvency Case Related Costs,OFFICIAL RECEIVER SERVICES                                                                          ,HPI LTD,BA0000306214,8.72,942407139
BEIS,The Insolvency Service,04/07/2017,Legal Costs,P&C - People Relations                                                                              ,GOVERNMENT LEGAL DEPARTMENT                                 ,BA0000306234,2599.60,888823066
BEIS,The Insolvency Service,04/07/2017,Office Supplies and Services,BUSINESS SERVICES DIRECTORATE                                                                       ,NEOPOST LIMITED,BA0000306226,114.48,597265489
BEIS,The Insolvency Service,04/07/2017,Postage,OFFICIAL RECEIVER SERVICES                                                                          ,CITY SPRINT UK LTD,BA0000306218,49.36,
BEIS,The Insolvency Service,04/07/2017,Postage,OFFICIAL RECEIVER SERVICES                                                                          ,CITY SPRINT UK LTD,BA0000306219,48.64,
BEIS,The Insolvency Service,04/07/2017,Insolvency Case Related Costs,FINANCE AND COMMERCIAL,INSOLVENCY SERVICE,BA0000306207,42.87,
BEIS,The Insolvency Service,04/07/2017,Insolvency Case Related Costs,FINANCE AND COMMERCIAL,INSOLVENCY SERVICE,BA0000306208,342.81,
BEIS,The Insolvency Service,04/07/2017,Insolvency Case Related Costs,FINANCE AND COMMERCIAL,INSOLVENCY SERVICE,BA0000306209,248.97,
BEIS,The Insolvency Service,04/07/2017,Insolvency Case Related Costs,FINANCE AND COMMERCIAL,INSOLVENCY SERVICE,BA0000306210,6.19,
BEIS,The Insolvency Service,04/07/2017,Training Costs,PEOPLE & CAPABILITY                                                                                 ,GOVERNMENT LEGAL DEPARTMENT                                 ,BA0000306216,920.16,888823066
BEIS,The Insolvency Service,05/07/2017,Investigation and Enforcement Costs,CRIMINAL ENFORCEMENT                                                                                ,QEB Hollis Whiteman                                         ,BA0000306269,165.00,                      
BEIS,The Insolvency Service,05/07/2017,Investigation and Enforcement Costs,CRIMINAL ENFORCEMENT                                                                                ,Financial Crime Information Network                         ,BA0000306267,8752.80,                      
BEIS,The Insolvency Service,05/07/2017,Computer and IT Systems,INFORMATION TECHNOLOGY                                                                              ,EXPERIAN QAS LTD,BA0000306233,2489.33,887133593
BEIS,The Insolvency Service,05/07/2017,Computer and IT Systems,INFORMATION TECHNOLOGY                                                                              ,EXPERIAN QAS LTD,BA0000306246,9783.60,887133593
BEIS,The Insolvency Service,05/07/2017,Computer and IT Systems,INFORMATION TECHNOLOGY                                                                              ,HAGUE COMPUTER SUPPLIES,BA0000306262,1411.80,333613774
BEIS,The Insolvency Service,05/07/2017,Computer and IT Systems,INFORMATION TECHNOLOGY                                                                              ,LUMESSE LEARNING LIMITED,BA0000306261,50933.23,809595000
BEIS,The Insolvency Service,05/07/2017,Computer and IT Systems,INFORMATION TECHNOLOGY                                                                              ,UKCLOUD LTD                                                 ,BA0000306270,4954.36,122134958
BEIS,The Insolvency Service,05/07/2017,Employee Related Costs,CRIMINAL ENFORCEMENT                                                                                ,Staff Payment,BA0000306254,25.00,                      
BEIS,The Insolvency Service,05/07/2017,Employee Related Costs,FINANCE AND COMMERCIAL                                                                              ,SPECSAVERS OPTICAL GROUP                                    ,BA0000306237,504.00,520 0113 30         
BEIS,The Insolvency Service,05/07/2017,Employee Related Costs,P&C - People Relations                                                                              ,RIGHT CORECARE Ltd                                          ,BA0000306247,485.78,                      
BEIS,The Insolvency Service,05/07/2017,Employee Related Costs,P&C - People Relations                                                                              ,Staff Payment,BA0000306276,153.00,                      
BEIS,The Insolvency Service,05/07/2017,Employee Related Costs,P&C - People Relations                                                                              ,Staff Payment,BA0000306276,153.00,
BEIS,The Insolvency Service,05/07/2017,Insolvency Case Related Costs,BUSINESS SERVICES DIRECTORATE                                                                       ,COMPANIES HOUSE,BA0000306251,10.00,GD255
BEIS,The Insolvency Service,05/07/2017,Insolvency Case Related Costs,OFFICIAL RECEIVER SERVICES                                                                          ,COMPANIES HOUSE,BA0000306240,7.00,GD255
BEIS,The Insolvency Service,05/07/2017,Insolvency Case Related Costs,OFFICIAL RECEIVER SERVICES                                                                          ,HPI LTD,BA0000306255,170.68,942407139
BEIS,The Insolvency Service,05/07/2017,Insolvency Case Related Costs,OFFICIAL RECEIVER SERVICES                                                                          ,THE STATIONERY OFFICE LTD,BA0000306257,72.24,662774703
BEIS,The Insolvency Service,05/07/2017,Insolvency Case Related Costs,OFFICIAL RECEIVER SERVICES                                                                          ,THE STATIONERY OFFICE LTD,BA0000306258,216.72,662774703
BEIS,The Insolvency Service,05/07/2017,Insolvency Case Related Costs,OFFICIAL RECEIVER SERVICES                                                                          ,THE STATIONERY OFFICE LTD,BA0000306259,72.24,662774703
BEIS,The Insolvency Service,05/07/2017,Insolvency Case Related Costs,OFFICIAL RECEIVER SERVICES                                                                          ,THE STATIONERY OFFICE LTD,BA0000306260,72.24,662774703
BEIS,The Insolvency Service,05/07/2017,Insolvency Case Related Costs,OFFICIAL RECEIVER SERVICES                                                                          ,THE STATIONERY OFFICE LTD,BA0000306272,72.24,662774703
BEIS,The Insolvency Service,05/07/2017,Investigation and Enforcement Costs,CRIMINAL ENFORCEMENT                                                                                ,Excalibur Investigations Ltd                                ,BA0000306263,200.00,                      
BEIS,The Insolvency Service,05/07/2017,Investigation and Enforcement Costs,CUSTOMER AND COMMUNICATIONS                                                                         ,GORKANA GROUP LTD                                           ,BA0000306273,454.50,757 158 012         
BEIS,The Insolvency Service,05/07/2017,Office Supplies and Services,CRIMINAL ENFORCEMENT                                                                                ,Staff Payment,BA0000306276,7.84,                      
BEIS,The Insolvency Service,05/07/2017,Office Supplies and Services,INFORMATION TECHNOLOGY                                                                              ,Staff Payment,BA0000306276,5.00,
BEIS,The Insolvency Service,05/07/2017,Office Supplies and Services,INVESTIGATIONS & ENFORCEMENT                                                                        ,Staff Payment,BA0000306276,4.44,
BEIS,The Insolvency Service,05/07/2017,Postage,FINANCE AND COMMERCIAL                                                                              ,ROYAL MAIL GROUP LTD                   ,BA0000306235,95.00,243170002
BEIS,The Insolvency Service,05/07/2017,Postage,FINANCE AND COMMERCIAL                                                                              ,ROYAL MAIL GROUP LTD                   ,BA0000306236,62.68,243170002
BEIS,The Insolvency Service,05/07/2017,Postage,INFORMATION TECHNOLOGY                                                                              ,DX NETWORK SERVICES LTD,BA0000306268,162.48, 849 7413 85
BEIS,The Insolvency Service,05/07/2017,Postage,OFFICIAL RECEIVER SERVICES                                                                          ,DX NETWORK SERVICES LTD,BA0000306268,98.08, 849 7413 85
BEIS,The Insolvency Service,05/07/2017,Postage,OFFICIAL RECEIVER SERVICES                                                                          ,DX NETWORK SERVICES LTD,BA0000306268,114.85, 849 7413 85
BEIS,The Insolvency Service,05/07/2017,Postage,OFFICIAL RECEIVER SERVICES                                                                          ,DX NETWORK SERVICES LTD,BA0000306268,115.75, 849 7413 85
BEIS,The Insolvency Service,05/07/2017,Postage,OFFICIAL RECEIVER SERVICES                                                                          ,DX NETWORK SERVICES LTD,BA0000306268,134.87, 849 7413 85
BEIS,The Insolvency Service,05/07/2017,Postage,OFFICIAL RECEIVER SERVICES                                                                          ,DX NETWORK SERVICES LTD,BA0000306268,145.34, 849 7413 85
BEIS,The Insolvency Service,05/07/2017,Postage,OFFICIAL RECEIVER SERVICES                                                                          ,DX NETWORK SERVICES LTD,BA0000306268,150.52, 849 7413 85
BEIS,The Insolvency Service,05/07/2017,Postage,OFFICIAL RECEIVER SERVICES                                                                          ,DX NETWORK SERVICES LTD,BA0000306268,199.75, 849 7413 85
BEIS,The Insolvency Service,05/07/2017,Postage,OFFICIAL RECEIVER SERVICES                                                                          ,DX NETWORK SERVICES LTD,BA0000306268,211.41, 849 7413 85
BEIS,The Insolvency Service,05/07/2017,Postage,OFFICIAL RECEIVER SERVICES                                                                          ,DX NETWORK SERVICES LTD,BA0000306268,239.70, 849 7413 85
BEIS,The Insolvency Service,05/07/2017,Postage,OFFICIAL RECEIVER SERVICES                                                                          ,DX NETWORK SERVICES LTD,BA0000306268,249.58, 849 7413 85
BEIS,The Insolvency Service,05/07/2017,Postage,OFFICIAL RECEIVER SERVICES                                                                          ,DX NETWORK SERVICES LTD,BA0000306268,277.56, 849 7413 85
BEIS,The Insolvency Service,05/07/2017,Postage,OFFICIAL RECEIVER SERVICES                                                                          ,DX NETWORK SERVICES LTD,BA0000306268,313.77, 849 7413 85
BEIS,The Insolvency Service,05/07/2017,Postage,OFFICIAL RECEIVER SERVICES                                                                          ,DX NETWORK SERVICES LTD,BA0000306268,343.65, 849 7413 85
BEIS,The Insolvency Service,05/07/2017,Postage,OFFICIAL RECEIVER SERVICES                                                                          ,DX NETWORK SERVICES LTD,BA0000306268,387.32, 849 7413 85
BEIS,The Insolvency Service,05/07/2017,Postage,OFFICIAL RECEIVER SERVICES                                                                          ,DX NETWORK SERVICES LTD,BA0000306268,477.09, 849 7413 85
BEIS,The Insolvency Service,05/07/2017,Postage,OFFICIAL RECEIVER SERVICES                                                                          ,DX NETWORK SERVICES LTD,BA0000306268,691.71, 849 7413 85
BEIS,The Insolvency Service,05/07/2017,Postage,OFFICIAL RECEIVER SERVICES                                                                          ,NEOPOST LIMITED,BA0000306253,549.58,597265489
BEIS,The Insolvency Service,05/07/2017,Telecoms,BUSINESS SERVICES DIRECTORATE                                                                       ,SYNTEC LTD                                                  ,BA0000306275,325.37,810309963
BEIS,The Insolvency Service,05/07/2017,Telecoms,INFORMATION TECHNOLOGY                                                                              ,KCOM GROUP PLC,BA0000306274,72.00,647235137
BEIS,The Insolvency Service,05/07/2017,Telecoms,INFORMATION TECHNOLOGY                                                                              ,VODAFONE - CABLE & WIRELESS COMMUNICATIONS,BA0000306271,3332.49,232 3037 10
BEIS,The Insolvency Service,05/07/2017,Training Costs,PEOPLE & CAPABILITY                                                                                 ,KPMG LLP                                                    ,BA0000306256,229.00,                      
BEIS,The Insolvency Service,05/07/2017,Training Costs,PEOPLE & CAPABILITY                                                                                 ,TMS DEVELOPMENT INTERNATIONAL LTD,BA0000306264,1500.00,551650063
BEIS,The Insolvency Service,05/07/2017,Training Costs,PEOPLE & CAPABILITY                                                                                 ,TMS DEVELOPMENT INTERNATIONAL LTD,BA0000306265,1500.00,551650063
BEIS,The Insolvency Service,05/07/2017,Training Costs,PEOPLE & CAPABILITY                                                                                 ,TMS DEVELOPMENT INTERNATIONAL LTD,BA0000306266,1500.00,551650063
BEIS,The Insolvency Service,05/07/2017,Travel and Subsistence,CRIMINAL ENFORCEMENT                                                                                ,Staff Payment,BA0000306276,4.70,                      
BEIS,The Insolvency Service,05/07/2017,Travel and Subsistence,CRIMINAL ENFORCEMENT                                                                                ,Staff Payment,BA0000306276,60.00,                      
BEIS,The Insolvency Service,05/07/2017,Travel and Subsistence,CRIMINAL ENFORCEMENT                                                                                ,Staff Payment,BA0000306276,3.20,                      
BEIS,The Insolvency Service,05/07/2017,Travel and Subsistence,CRIMINAL ENFORCEMENT                                                                                ,Staff Payment,BA0000306276,3.30,                      
BEIS,The Insolvency Service,05/07/2017,Travel and Subsistence,CRIMINAL ENFORCEMENT                                                                                ,Staff Payment,BA0000306276,5.00,                      
BEIS,The Insolvency Service,05/07/2017,Travel and Subsistence,CRIMINAL ENFORCEMENT                                                                                ,Staff Payment,BA0000306276,53.45,                      
BEIS,The Insolvency Service,05/07/2017,Travel and Subsistence,BUSINESS SERVICES DIRECTORATE                                                                       ,Staff Payment,BA0000306276,2.30,
BEIS,The Insolvency Service,05/07/2017,Travel and Subsistence,BUSINESS SERVICES DIRECTORATE                                                                       ,Staff Payment,BA0000306276,3.05,
BEIS,The Insolvency Service,05/07/2017,Travel and Subsistence,BUSINESS SERVICES DIRECTORATE                                                                       ,Staff Payment,BA0000306276,5.00,
BEIS,The Insolvency Service,05/07/2017,Travel and Subsistence,BUSINESS SERVICES DIRECTORATE                                                                       ,Staff Payment,BA0000306276,9.75,
BEIS,The Insolvency Service,05/07/2017,Travel and Subsistence,BUSINESS SERVICES DIRECTORATE                                                                       ,Staff Payment,BA0000306276,4.49,
BEIS,The Insolvency Service,05/07/2017,Travel and Subsistence,BUSINESS SERVICES DIRECTORATE                                                                       ,Staff Payment,BA0000306276,3.95,
BEIS,The Insolvency Service,05/07/2017,Travel and Subsistence,BUSINESS SERVICES DIRECTORATE                                                                       ,Staff Payment,BA0000306276,4.40,
BEIS,The Insolvency Service,05/07/2017,Travel and Subsistence,BUSINESS SERVICES DIRECTORATE                                                                       ,Staff Payment,BA0000306276,9.40,
BEIS,The Insolvency Service,05/07/2017,Travel and Subsistence,CRIMINAL ENFORCEMENT                                                                                ,Staff Payment,BA0000306276,4.45,                      
BEIS,The Insolvency Service,05/07/2017,Travel and Subsistence,CRIMINAL ENFORCEMENT                                                                                ,Staff Payment,BA0000306276,4.50,                      
BEIS,The Insolvency Service,05/07/2017,Travel and Subsistence,CRIMINAL ENFORCEMENT                                                                                ,Staff Payment,BA0000306276,4.85,                      
BEIS,The Insolvency Service,05/07/2017,Travel and Subsistence,CRIMINAL ENFORCEMENT                                                                                ,Staff Payment,BA0000306276,5.00,                      
BEIS,The Insolvency Service,05/07/2017,Travel and Subsistence,CRIMINAL ENFORCEMENT                                                                                ,Staff Payment,BA0000306276,27.90,                      
BEIS,The Insolvency Service,05/07/2017,Travel and Subsistence,CRIMINAL ENFORCEMENT                                                                                ,Staff Payment,BA0000306276,76.50,                      
BEIS,The Insolvency Service,05/07/2017,Travel and Subsistence,CRIMINAL ENFORCEMENT                                                                                ,Staff Payment,BA0000306276,4.20,                      
BEIS,The Insolvency Service,05/07/2017,Travel and Subsistence,CRIMINAL ENFORCEMENT                                                                                ,Staff Payment,BA0000306276,5.00,                      
BEIS,The Insolvency Service,05/07/2017,Travel and Subsistence,CRIMINAL ENFORCEMENT                                                                                ,Staff Payment,BA0000306276,6.20,                      
BEIS,The Insolvency Service,05/07/2017,Travel and Subsistence,CRIMINAL ENFORCEMENT                                                                                ,Staff Payment,BA0000306276,8.60,                      
BEIS,The Insolvency Service,05/07/2017,Travel and Subsistence,CRIMINAL ENFORCEMENT                                                                                ,Staff Payment,BA0000306276,22.05,                      
BEIS,The Insolvency Service,05/07/2017,Travel and Subsistence,CRIMINAL ENFORCEMENT                                                                                ,Staff Payment,BA0000306276,158.40,                      
BEIS,The Insolvency Service,05/07/2017,Travel and Subsistence,CRIMINAL ENFORCEMENT                                                                                ,Staff Payment,BA0000306276,5.00,                      
BEIS,The Insolvency Service,05/07/2017,Travel and Subsistence,CRIMINAL ENFORCEMENT                                                                                ,Staff Payment,BA0000306276,6.00,                      
BEIS,The Insolvency Service,05/07/2017,Travel and Subsistence,CRIMINAL ENFORCEMENT                                                                                ,Staff Payment,BA0000306276,7.10,                      
BEIS,The Insolvency Service,05/07/2017,Travel and Subsistence,CRIMINAL ENFORCEMENT                                                                                ,Staff Payment,BA0000306276,10.35,                      
BEIS,The Insolvency Service,05/07/2017,Travel and Subsistence,CRIMINAL ENFORCEMENT                                                                                ,Staff Payment,BA0000306276,10.80,                      
BEIS,The Insolvency Service,05/07/2017,Travel and Subsistence,CRIMINAL ENFORCEMENT                                                                                ,Staff Payment,BA0000306276,78.75,                      
BEIS,The Insolvency Service,05/07/2017,Travel and Subsistence,CRIMINAL ENFORCEMENT                                                                                ,Staff Payment,BA0000306276,129.00,                      
BEIS,The Insolvency Service,05/07/2017,Travel and Subsistence,CRIMINAL ENFORCEMENT                                                                                ,Staff Payment,BA0000306276,2.00,                      
BEIS,The Insolvency Service,05/07/2017,Travel and Subsistence,CRIMINAL ENFORCEMENT                                                                                ,Staff Payment,BA0000306276,3.47,                      
BEIS,The Insolvency Service,05/07/2017,Travel and Subsistence,CRIMINAL ENFORCEMENT                                                                                ,Staff Payment,BA0000306276,3.70,                      
BEIS,The Insolvency Service,05/07/2017,Travel and Subsistence,CRIMINAL ENFORCEMENT                                                                                ,Staff Payment,BA0000306276,5.00,                      
BEIS,The Insolvency Service,05/07/2017,Travel and Subsistence,CRIMINAL ENFORCEMENT                                                                                ,Staff Payment,BA0000306276,5.00,                      
BEIS,The Insolvency Service,05/07/2017,Travel and Subsistence,CRIMINAL ENFORCEMENT                                                                                ,Staff Payment,BA0000306276,6.00,                      
BEIS,The Insolvency Service,05/07/2017,Travel and Subsistence,CRIMINAL ENFORCEMENT                                                                                ,Staff Payment,BA0000306276,107.10,                      
BEIS,The Insolvency Service,05/07/2017,Travel and Subsistence,CRIMINAL ENFORCEMENT                                                                                ,Staff Payment,BA0000306276,114.30,                      
BEIS,The Insolvency Service,05/07/2017,Travel and Subsistence,CRIMINAL ENFORCEMENT                                                                                ,Staff Payment,BA0000306276,119.70,                      
BEIS,The Insolvency Service,05/07/2017,Travel and Subsistence,CRIMINAL ENFORCEMENT                                                                                ,Staff Payment,BA0000306276,12.95,                      
BEIS,The Insolvency Service,05/07/2017,Travel and Subsistence,CRIMINAL ENFORCEMENT                                                                                ,Staff Payment,BA0000306276,50.00,                      
BEIS,The Insolvency Service,05/07/2017,Travel and Subsistence,CRIMINAL ENFORCEMENT                                                                                ,Staff Payment,BA0000306276,4.50,                      
BEIS,The Insolvency Service,05/07/2017,Travel and Subsistence,CRIMINAL ENFORCEMENT                                                                                ,Staff Payment,BA0000306276,8.55,                      
BEIS,The Insolvency Service,05/07/2017,Travel and Subsistence,CRIMINAL ENFORCEMENT                                                                                ,Staff Payment,BA0000306276,10.80,                      
BEIS,The Insolvency Service,05/07/2017,Travel and Subsistence,CRIMINAL ENFORCEMENT                                                                                ,Staff Payment,BA0000306276,15.00,                      
BEIS,The Insolvency Service,05/07/2017,Travel and Subsistence,CRIMINAL ENFORCEMENT                                                                                ,Staff Payment,BA0000306276,1.00,                      
BEIS,The Insolvency Service,05/07/2017,Travel and Subsistence,CRIMINAL ENFORCEMENT                                                                                ,Staff Payment,BA0000306276,1.80,                      
BEIS,The Insolvency Service,05/07/2017,Travel and Subsistence,CRIMINAL ENFORCEMENT                                                                                ,Staff Payment,BA0000306276,4.00,                      
BEIS,The Insolvency Service,05/07/2017,Travel and Subsistence,CRIMINAL ENFORCEMENT                                                                                ,Staff Payment,BA0000306276,4.30,                      
BEIS,The Insolvency Service,05/07/2017,Travel and Subsistence,CRIMINAL ENFORCEMENT                                                                                ,Staff Payment,BA0000306276,5.00,                      
BEIS,The Insolvency Service,05/07/2017,Travel and Subsistence,CRIMINAL ENFORCEMENT                                                                                ,Staff Payment,BA0000306276,5.50,                      
BEIS,The Insolvency Service,05/07/2017,Travel and Subsistence,CRIMINAL ENFORCEMENT                                                                                ,Staff Payment,BA0000306276,8.55,                      
BEIS,The Insolvency Service,05/07/2017,Travel and Subsistence,CRIMINAL ENFORCEMENT                                                                                ,Staff Payment,BA0000306276,9.00,                      
BEIS,The Insolvency Service,05/07/2017,Travel and Subsistence,CRIMINAL ENFORCEMENT                                                                                ,Staff Payment,BA0000306276,11.00,                      
BEIS,The Insolvency Service,05/07/2017,Travel and Subsistence,CRIMINAL ENFORCEMENT                                                                                ,Staff Payment,BA0000306276,15.00,                      
BEIS,The Insolvency Service,05/07/2017,Travel and Subsistence,CRIMINAL ENFORCEMENT                                                                                ,Staff Payment,BA0000306276,22.00,                      
BEIS,The Insolvency Service,05/07/2017,Travel and Subsistence,CRIMINAL ENFORCEMENT                                                                                ,Staff Payment,BA0000306276,31.50,                      
BEIS,The Insolvency Service,05/07/2017,Travel and Subsistence,CRIMINAL ENFORCEMENT                                                                                ,Staff Payment,BA0000306276,39.60,                      
BEIS,The Insolvency Service,05/07/2017,Travel and Subsistence,CRIMINAL ENFORCEMENT                                                                                ,Staff Payment,BA0000306276,93.60,                      
BEIS,The Insolvency Service,05/07/2017,Travel and Subsistence,CRIMINAL ENFORCEMENT                                                                                ,Staff Payment,BA0000306276,11.50,                      
BEIS,The Insolvency Service,05/07/2017,Travel and Subsistence,CRIMINAL ENFORCEMENT                                                                                ,Staff Payment,BA0000306276,13.50,                      
BEIS,The Insolvency Service,05/07/2017,Travel and Subsistence,CRIMINAL ENFORCEMENT                                                                                ,Staff Payment,BA0000306276,15.00,                      
BEIS,The Insolvency Service,05/07/2017,Travel and Subsistence,FINANCE AND COMMERCIAL                                                                              ,Staff Payment,BA0000306276,5.00,
BEIS,The Insolvency Service,05/07/2017,Travel and Subsistence,FINANCE AND COMMERCIAL,Staff Payment,BA0000306276,4.80,                      
BEIS,The Insolvency Service,05/07/2017,Travel and Subsistence,FINANCE AND COMMERCIAL,Staff Payment,BA0000306276,5.00,                      
BEIS,The Insolvency Service,05/07/2017,Travel and Subsistence,FINANCE AND COMMERCIAL,Staff Payment,BA0000306276,3.89,                      
BEIS,The Insolvency Service,05/07/2017,Travel and Subsistence,FINANCE AND COMMERCIAL,Staff Payment,BA0000306276,4.80,                      
BEIS,The Insolvency Service,05/07/2017,Travel and Subsistence,INFORMATION TECHNOLOGY                                                                              ,Staff Payment,BA0000306276,5.00,
BEIS,The Insolvency Service,05/07/2017,Travel and Subsistence,INFORMATION TECHNOLOGY                                                                              ,Staff Payment,BA0000306276,15.00,
BEIS,The Insolvency Service,05/07/2017,Travel and Subsistence,INVESTIGATIONS & ENFORCEMENT                                                                        ,Staff Payment,BA0000306276,4.60,
BEIS,The Insolvency Service,05/07/2017,Travel and Subsistence,INVESTIGATIONS & ENFORCEMENT                                                                        ,Staff Payment,BA0000306276,7.50,
BEIS,The Insolvency Service,05/07/2017,Travel and Subsistence,INVESTIGATIONS & ENFORCEMENT                                                                        ,Staff Payment,BA0000306276,3.50,
BEIS,The Insolvency Service,05/07/2017,Travel and Subsistence,INVESTIGATIONS & ENFORCEMENT                                                                        ,Staff Payment,BA0000306276,3.60,
BEIS,The Insolvency Service,05/07/2017,Travel and Subsistence,INVESTIGATIONS & ENFORCEMENT                                                                        ,Staff Payment,BA0000306276,4.30,
BEIS,The Insolvency Service,05/07/2017,Travel and Subsistence,INVESTIGATIONS & ENFORCEMENT                                                                        ,Staff Payment,BA0000306276,5.00,
BEIS,The Insolvency Service,05/07/2017,Travel and Subsistence,INVESTIGATIONS & ENFORCEMENT                                                                        ,Staff Payment,BA0000306276,9.00,
BEIS,The Insolvency Service,05/07/2017,Travel and Subsistence,INVESTIGATIONS & ENFORCEMENT                                                                        ,Staff Payment,BA0000306276,11.00,
BEIS,The Insolvency Service,05/07/2017,Travel and Subsistence,INVESTIGATIONS & ENFORCEMENT                                                                        ,Staff Payment,BA0000306276,13.95,
BEIS,The Insolvency Service,05/07/2017,Travel and Subsistence,INVESTIGATIONS & ENFORCEMENT                                                                        ,Staff Payment,BA0000306276,18.00,
BEIS,The Insolvency Service,05/07/2017,Travel and Subsistence,INVESTIGATIONS & ENFORCEMENT                                                                        ,Staff Payment,BA0000306276,24.00,
BEIS,The Insolvency Service,05/07/2017,Travel and Subsistence,OFFICIAL RECEIVER SERVICES                                                                          ,Staff Payment,BA0000306276,5.00,
BEIS,The Insolvency Service,05/07/2017,Travel and Subsistence,OFFICIAL RECEIVER SERVICES                                                                          ,Staff Payment,BA0000306276,3.00,
BEIS,The Insolvency Service,05/07/2017,Travel and Subsistence,OFFICIAL RECEIVER SERVICES                                                                          ,Staff Payment,BA0000306276,15.30,
BEIS,The Insolvency Service,05/07/2017,Travel and Subsistence,OFFICIAL RECEIVER SERVICES                                                                          ,Staff Payment,BA0000306276,3.20,
BEIS,The Insolvency Service,05/07/2017,Travel and Subsistence,OFFICIAL RECEIVER SERVICES                                                                          ,Staff Payment,BA0000306276,5.00,
BEIS,The Insolvency Service,05/07/2017,Travel and Subsistence,OFFICIAL RECEIVER SERVICES                                                                          ,Staff Payment,BA0000306276,5.00,
BEIS,The Insolvency Service,05/07/2017,Travel and Subsistence,OFFICIAL RECEIVER SERVICES                                                                          ,Staff Payment,BA0000306276,4.60,
BEIS,The Insolvency Service,05/07/2017,Travel and Subsistence,OFFICIAL RECEIVER SERVICES                                                                          ,Staff Payment,BA0000306276,15.00,
BEIS,The Insolvency Service,05/07/2017,Travel and Subsistence,OFFICIAL RECEIVER SERVICES                                                                          ,Staff Payment,BA0000306276,5.00,
BEIS,The Insolvency Service,05/07/2017,Travel and Subsistence,OFFICIAL RECEIVER SERVICES                                                                          ,Staff Payment,BA0000306276,5.00,
BEIS,The Insolvency Service,05/07/2017,Travel and Subsistence,OFFICIAL RECEIVER SERVICES                                                                          ,Staff Payment,BA0000306276,3.00,
BEIS,The Insolvency Service,05/07/2017,Travel and Subsistence,OFFICIAL RECEIVER SERVICES                                                                          ,Staff Payment,BA0000306276,31.50,
BEIS,The Insolvency Service,05/07/2017,Travel and Subsistence,OFFICIAL RECEIVER SERVICES                                                                          ,Staff Payment,BA0000306276,5.00,
BEIS,The Insolvency Service,05/07/2017,Travel and Subsistence,OFFICIAL RECEIVER SERVICES                                                                          ,Staff Payment,BA0000306276,9.90,
BEIS,The Insolvency Service,05/07/2017,Travel and Subsistence,OFFICIAL RECEIVER SERVICES                                                                          ,Staff Payment,BA0000306276,1.20,
BEIS,The Insolvency Service,05/07/2017,Travel and Subsistence,OFFICIAL RECEIVER SERVICES                                                                          ,Staff Payment,BA0000306276,9.90,
BEIS,The Insolvency Service,05/07/2017,Travel and Subsistence,OFFICIAL RECEIVER SERVICES                                                                          ,Staff Payment,BA0000306276,5.00,
BEIS,The Insolvency Service,05/07/2017,Travel and Subsistence,OFFICIAL RECEIVER SERVICES                                                                          ,Staff Payment,BA0000306276,18.90,
BEIS,The Insolvency Service,05/07/2017,Travel and Subsistence,OFFICIAL RECEIVER SERVICES                                                                          ,Staff Payment,BA0000306276,6.00,
BEIS,The Insolvency Service,05/07/2017,Travel and Subsistence,OFFICIAL RECEIVER SERVICES                                                                          ,Staff Payment,BA0000306276,6.40,
BEIS,The Insolvency Service,05/07/2017,Travel and Subsistence,OFFICIAL RECEIVER SERVICES                                                                          ,Staff Payment,BA0000306276,4.40,
BEIS,The Insolvency Service,05/07/2017,Travel and Subsistence,OFFICIAL RECEIVER SERVICES                                                                          ,Staff Payment,BA0000306276,6.20,
BEIS,The Insolvency Service,05/07/2017,Travel and Subsistence,OFFICIAL RECEIVER SERVICES                                                                          ,Staff Payment,BA0000306276,11.30,
BEIS,The Insolvency Service,05/07/2017,Travel and Subsistence,OFFICIAL RECEIVER SERVICES                                                                          ,Staff Payment,BA0000306276,13.10,
BEIS,The Insolvency Service,05/07/2017,Travel and Subsistence,OFFICIAL RECEIVER SERVICES                                                                          ,Staff Payment,BA0000306276,29.50,
BEIS,The Insolvency Service,05/07/2017,Travel and Subsistence,P&C - People Relations                                                                              ,Staff Payment,BA0000306276,5.00,
BEIS,The Insolvency Service,05/07/2017,Travel and Subsistence,P&C - People Relations                                                                              ,Staff Payment,BA0000306276,3.00,
BEIS,The Insolvency Service,05/07/2017,Travel and Subsistence,P&C - People Relations                                                                              ,Staff Payment,BA0000306276,4.80,
BEIS,The Insolvency Service,05/07/2017,Travel and Subsistence,P&C - Talent                                                                                        ,Staff Payment,BA0000306276,5.00,                      
BEIS,The Insolvency Service,05/07/2017,Travel and Subsistence,P&C - Talent                                                                                        ,Staff Payment,BA0000306276,10.00,                      
BEIS,The Insolvency Service,05/07/2017,Travel and Subsistence,PEOPLE & CAPABILITY                                                                                 ,Staff Payment,BA0000306276,5.00,
BEIS,The Insolvency Service,05/07/2017,Travel and Subsistence,PEOPLE & CAPABILITY                                                                                 ,Staff Payment,BA0000306276,25.65,
BEIS,The Insolvency Service,05/07/2017,Travel and Subsistence,PEOPLE & CAPABILITY                                                                                 ,Staff Payment,BA0000306276,3.90,
BEIS,The Insolvency Service,05/07/2017,Travel and Subsistence,PEOPLE & CAPABILITY                                                                                 ,Staff Payment,BA0000306276,5.00,
BEIS,The Insolvency Service,05/07/2017,Travel and Subsistence,PEOPLE & CAPABILITY                                                                                 ,Staff Payment,BA0000306276,11.90,
BEIS,The Insolvency Service,05/07/2017,Travel and Subsistence,PEOPLE & CAPABILITY                                                                                 ,Staff Payment,BA0000306276,12.28,
BEIS,The Insolvency Service,05/07/2017,Travel and Subsistence,PEOPLE & CAPABILITY                                                                                 ,Staff Payment,BA0000306276,2.99,
BEIS,The Insolvency Service,05/07/2017,Travel and Subsistence,PEOPLE & CAPABILITY                                                                                 ,Staff Payment,BA0000306276,5.00,
BEIS,The Insolvency Service,05/07/2017,Travel and Subsistence,PEOPLE & CAPABILITY                                                                                 ,Staff Payment,BA0000306276,15.50,
BEIS,The Insolvency Service,05/07/2017,Travel and Subsistence,PEOPLE & CAPABILITY                                                                                 ,Staff Payment,BA0000306276,2.00,
BEIS,The Insolvency Service,05/07/2017,Travel and Subsistence,PEOPLE & CAPABILITY                                                                                 ,Staff Payment,BA0000306276,4.90,
BEIS,The Insolvency Service,05/07/2017,Travel and Subsistence,PEOPLE & CAPABILITY                                                                                 ,Staff Payment,BA0000306276,10.00,
BEIS,The Insolvency Service,05/07/2017,Travel and Subsistence,PEOPLE & CAPABILITY                                                                                 ,Staff Payment,BA0000306276,12.00,
BEIS,The Insolvency Service,05/07/2017,Travel and Subsistence,PEOPLE & CAPABILITY                                                                                 ,Staff Payment,BA0000306276,17.10,
BEIS,The Insolvency Service,05/07/2017,Travel and Subsistence,PEOPLE & CAPABILITY                                                                                 ,Staff Payment,BA0000306276,3.00,
BEIS,The Insolvency Service,05/07/2017,Travel and Subsistence,PEOPLE & CAPABILITY                                                                                 ,Staff Payment,BA0000306276,3.70,
BEIS,The Insolvency Service,05/07/2017,Travel and Subsistence,PEOPLE & CAPABILITY                                                                                 ,Staff Payment,BA0000306276,3.80,
BEIS,The Insolvency Service,05/07/2017,Travel and Subsistence,PEOPLE & CAPABILITY                                                                                 ,Staff Payment,BA0000306276,4.05,
BEIS,The Insolvency Service,05/07/2017,Travel and Subsistence,PEOPLE & CAPABILITY                                                                                 ,Staff Payment,BA0000306276,4.10,
BEIS,The Insolvency Service,05/07/2017,Travel and Subsistence,PEOPLE & CAPABILITY                                                                                 ,Staff Payment,BA0000306276,4.25,
BEIS,The Insolvency Service,05/07/2017,Travel and Subsistence,PEOPLE & CAPABILITY                                                                                 ,Staff Payment,BA0000306276,5.00,
BEIS,The Insolvency Service,05/07/2017,Travel and Subsistence,PEOPLE & CAPABILITY                                                                                 ,Staff Payment,BA0000306276,9.89,
BEIS,The Insolvency Service,05/07/2017,Travel and Subsistence,PEOPLE & CAPABILITY                                                                                 ,Staff Payment,BA0000306276,10.58,
BEIS,The Insolvency Service,05/07/2017,Travel and Subsistence,PEOPLE & CAPABILITY                                                                                 ,Staff Payment,BA0000306276,12.43,
BEIS,The Insolvency Service,05/07/2017,Travel and Subsistence,PEOPLE & CAPABILITY                                                                                 ,Staff Payment,BA0000306276,12.70,
BEIS,The Insolvency Service,05/07/2017,Travel and Subsistence,PEOPLE & CAPABILITY                                                                                 ,Staff Payment,BA0000306276,12.78,
BEIS,The Insolvency Service,05/07/2017,Travel and Subsistence,PEOPLE & CAPABILITY                                                                                 ,Staff Payment,BA0000306276,18.00,
BEIS,The Insolvency Service,05/07/2017,Travel and Subsistence,PEOPLE & CAPABILITY                                                                                 ,Staff Payment,BA0000306276,5.00,
BEIS,The Insolvency Service,05/07/2017,Travel and Subsistence,PEOPLE & CAPABILITY                                                                                 ,Staff Payment,BA0000306276,45.90,
BEIS,The Insolvency Service,05/07/2017,Travel and Subsistence,PEOPLE & CAPABILITY                                                                                 ,Staff Payment,BA0000306276,18.00,
BEIS,The Insolvency Service,05/07/2017,Travel and Subsistence,PEOPLE & CAPABILITY                                                                                 ,Staff Payment,BA0000306276,5.00,
BEIS,The Insolvency Service,05/07/2017,Travel and Subsistence,PEOPLE & CAPABILITY                                                                                 ,Staff Payment,BA0000306276,8.00,
BEIS,The Insolvency Service,05/07/2017,Travel and Subsistence,PEOPLE & CAPABILITY                                                                                 ,Staff Payment,BA0000306276,10.00,
BEIS,The Insolvency Service,05/07/2017,Travel and Subsistence,PEOPLE & CAPABILITY                                                                                 ,Staff Payment,BA0000306276,15.00,
BEIS,The Insolvency Service,06/07/2017,Investigation and Enforcement Costs,CRIMINAL ENFORCEMENT                                                                                ,Invictus Chambers                                           ,BA0000306283,488.16,                      
BEIS,The Insolvency Service,06/07/2017,Computer and IT Systems,INFORMATION TECHNOLOGY                                                                              ,NINE TELECOM,BA0000306285,732.60,886132113
BEIS,The Insolvency Service,06/07/2017,Employee Related Costs,CRIMINAL ENFORCEMENT                                                                                ,Staff Payment,BA0000306290,5.00,                      
BEIS,The Insolvency Service,06/07/2017,Office Supplies and Services,CRIMINAL ENFORCEMENT                                                                                ,Staff Payment,BA0000306290,1.95,                      
BEIS,The Insolvency Service,06/07/2017,Office Supplies and Services,CRIMINAL ENFORCEMENT                                                                                ,Staff Payment,BA0000306290,7.25,                      
BEIS,The Insolvency Service,06/07/2017,Office Supplies and Services,CRIMINAL ENFORCEMENT                                                                                ,Staff Payment,BA0000306290,10.05,                      
BEIS,The Insolvency Service,06/07/2017,Office Supplies and Services,CRIMINAL ENFORCEMENT                                                                                ,Staff Payment,BA0000306290,1.75,                      
BEIS,The Insolvency Service,06/07/2017,Office Supplies and Services,CRIMINAL ENFORCEMENT                                                                                ,Staff Payment,BA0000306290,5.20,                      
BEIS,The Insolvency Service,06/07/2017,Office Supplies and Services,CRIMINAL ENFORCEMENT                                                                                ,Staff Payment,BA0000306290,4.74,                      
BEIS,The Insolvency Service,06/07/2017,Office Supplies and Services,CRIMINAL ENFORCEMENT                                                                                ,Staff Payment,BA0000306290,5.00,                      
BEIS,The Insolvency Service,06/07/2017,Postage,OFFICIAL RECEIVER SERVICES                                                                          ,ROYAL MAIL GROUP LTD                   ,BA0000306278,13.87,243170002
BEIS,The Insolvency Service,06/07/2017,Telecoms,INFORMATION TECHNOLOGY                                                                              ,MAINTEL,BA0000306279,47260.54,
BEIS,The Insolvency Service,06/07/2017,Training Costs,OFFICIAL RECEIVER SERVICES                                                                          ,KPMG LLP                                                    ,BA0000306280,229.00,                      
BEIS,The Insolvency Service,06/07/2017,Training Costs,OFFICIAL RECEIVER SERVICES                                                                          ,KPMG LLP                                                    ,BA0000306284,229.00,                      
BEIS,The Insolvency Service,06/07/2017,Training Costs,PEOPLE & CAPABILITY                                                                                 ,KPMG LLP                                                    ,BA0000306281,199.00,                      
BEIS,The Insolvency Service,06/07/2017,Training Costs,PEOPLE & CAPABILITY                                                                                 ,KPMG LLP                                                    ,BA0000306282,1607.00,                      
BEIS,The Insolvency Service,06/07/2017,Travel and Subsistence,CRIMINAL ENFORCEMENT                                                                                ,Staff Payment,BA0000306290,12.50,                      
BEIS,The Insolvency Service,06/07/2017,Travel and Subsistence,CRIMINAL ENFORCEMENT                                                                                ,Staff Payment,BA0000306290,15.00,                      
BEIS,The Insolvency Service,06/07/2017,Travel and Subsistence,CRIMINAL ENFORCEMENT                                                                                ,Staff Payment,BA0000306290,5.00,                      
BEIS,The Insolvency Service,06/07/2017,Travel and Subsistence,BUSINESS SERVICES DIRECTORATE                                                                       ,Staff Payment,BA0000306287,8.60,
BEIS,The Insolvency Service,06/07/2017,Travel and Subsistence,BUSINESS SERVICES DIRECTORATE                                                                       ,Staff Payment,BA0000306290,6.20,                      
BEIS,The Insolvency Service,06/07/2017,Travel and Subsistence,BUSINESS SERVICES DIRECTORATE                                                                       ,Staff Payment,BA0000306290,13.55,                      
BEIS,The Insolvency Service,06/07/2017,Travel and Subsistence,BUSINESS SERVICES DIRECTORATE                                                                       ,Staff Payment,BA0000306290,4.85,                      
BEIS,The Insolvency Service,06/07/2017,Travel and Subsistence,BUSINESS SERVICES DIRECTORATE                                                                       ,Staff Payment,BA0000306290,2.45,                      
BEIS,The Insolvency Service,06/07/2017,Travel and Subsistence,CRIMINAL ENFORCEMENT                                                                                ,Staff Payment,BA0000306290,5.00,                      
BEIS,The Insolvency Service,06/07/2017,Travel and Subsistence,CRIMINAL ENFORCEMENT                                                                                ,Staff Payment,BA0000306290,5.30,                      
BEIS,The Insolvency Service,06/07/2017,Travel and Subsistence,CRIMINAL ENFORCEMENT                                                                                ,Staff Payment,BA0000306290,6.70,                      
BEIS,The Insolvency Service,06/07/2017,Travel and Subsistence,CRIMINAL ENFORCEMENT                                                                                ,Staff Payment,BA0000306290,10.15,                      
BEIS,The Insolvency Service,06/07/2017,Travel and Subsistence,CRIMINAL ENFORCEMENT                                                                                ,Staff Payment,BA0000306290,10.48,                      
BEIS,The Insolvency Service,06/07/2017,Travel and Subsistence,CRIMINAL ENFORCEMENT                                                                                ,Staff Payment,BA0000306290,10.80,                      
BEIS,The Insolvency Service,06/07/2017,Travel and Subsistence,CRIMINAL ENFORCEMENT                                                                                ,Staff Payment,BA0000306290,11.46,                      
BEIS,The Insolvency Service,06/07/2017,Travel and Subsistence,CRIMINAL ENFORCEMENT                                                                                ,Staff Payment,BA0000306290,11.69,                      
BEIS,The Insolvency Service,06/07/2017,Travel and Subsistence,CRIMINAL ENFORCEMENT                                                                                ,Staff Payment,BA0000306290,15.00,                      
BEIS,The Insolvency Service,06/07/2017,Travel and Subsistence,CRIMINAL ENFORCEMENT                                                                                ,Staff Payment,BA0000306290,88.20,                      
BEIS,The Insolvency Service,06/07/2017,Travel and Subsistence,CRIMINAL ENFORCEMENT                                                                                ,Staff Payment,BA0000306290,88.65,                      
BEIS,The Insolvency Service,06/07/2017,Travel and Subsistence,CRIMINAL ENFORCEMENT                                                                                ,Staff Payment,BA0000306290,4.00,                      
BEIS,The Insolvency Service,06/07/2017,Travel and Subsistence,CRIMINAL ENFORCEMENT                                                                                ,Staff Payment,BA0000306290,4.50,                      
BEIS,The Insolvency Service,06/07/2017,Travel and Subsistence,CRIMINAL ENFORCEMENT                                                                                ,Staff Payment,BA0000306290,5.00,                      
BEIS,The Insolvency Service,06/07/2017,Travel and Subsistence,CRIMINAL ENFORCEMENT                                                                                ,Staff Payment,BA0000306290,5.00,                      
BEIS,The Insolvency Service,06/07/2017,Travel and Subsistence,CRIMINAL ENFORCEMENT                                                                                ,Staff Payment,BA0000306290,6.00,                      
BEIS,The Insolvency Service,06/07/2017,Travel and Subsistence,CRIMINAL ENFORCEMENT                                                                                ,Staff Payment,BA0000306290,10.00,                      
BEIS,The Insolvency Service,06/07/2017,Travel and Subsistence,CRIMINAL ENFORCEMENT                                                                                ,Staff Payment,BA0000306290,42.30,                      
BEIS,The Insolvency Service,06/07/2017,Travel and Subsistence,CRIMINAL ENFORCEMENT                                                                                ,Staff Payment,BA0000306290,74.70,                      
BEIS,The Insolvency Service,06/07/2017,Travel and Subsistence,CRIMINAL ENFORCEMENT                                                                                ,Staff Payment,BA0000306290,122.40,                      
BEIS,The Insolvency Service,06/07/2017,Travel and Subsistence,CRIMINAL ENFORCEMENT                                                                                ,Staff Payment,BA0000306290,4.04,                      
BEIS,The Insolvency Service,06/07/2017,Travel and Subsistence,CRIMINAL ENFORCEMENT                                                                                ,Staff Payment,BA0000306290,5.00,                      
BEIS,The Insolvency Service,06/07/2017,Travel and Subsistence,CRIMINAL ENFORCEMENT                                                                                ,Staff Payment,BA0000306290,15.00,                      
BEIS,The Insolvency Service,06/07/2017,Travel and Subsistence,CRIMINAL ENFORCEMENT                                                                                ,Staff Payment,BA0000306290,16.65,                      
BEIS,The Insolvency Service,06/07/2017,Travel and Subsistence,CRIMINAL ENFORCEMENT                                                                                ,Staff Payment,BA0000306290,29.25,                      
BEIS,The Insolvency Service,06/07/2017,Travel and Subsistence,CRIMINAL ENFORCEMENT                                                                                ,Staff Payment,BA0000306290,53.55,                      
BEIS,The Insolvency Service,06/07/2017,Travel and Subsistence,CRIMINAL ENFORCEMENT                                                                                ,Staff Payment,BA0000306290,69.30,                      
BEIS,The Insolvency Service,06/07/2017,Travel and Subsistence,CRIMINAL ENFORCEMENT                                                                                ,Staff Payment,BA0000306290,86.40,                      
BEIS,The Insolvency Service,06/07/2017,Travel and Subsistence,CRIMINAL ENFORCEMENT                                                                                ,Staff Payment,BA0000306290,103.05,                      
BEIS,The Insolvency Service,06/07/2017,Travel and Subsistence,CRIMINAL ENFORCEMENT                                                                                ,Staff Payment,BA0000306290,3.50,                      
BEIS,The Insolvency Service,06/07/2017,Travel and Subsistence,CRIMINAL ENFORCEMENT                                                                                ,Staff Payment,BA0000306290,4.23,                      
BEIS,The Insolvency Service,06/07/2017,Travel and Subsistence,CRIMINAL ENFORCEMENT                                                                                ,Staff Payment,BA0000306290,4.50,                      
BEIS,The Insolvency Service,06/07/2017,Travel and Subsistence,CRIMINAL ENFORCEMENT                                                                                ,Staff Payment,BA0000306290,4.75,                      
BEIS,The Insolvency Service,06/07/2017,Travel and Subsistence,CRIMINAL ENFORCEMENT                                                                                ,Staff Payment,BA0000306290,4.85,                      
BEIS,The Insolvency Service,06/07/2017,Travel and Subsistence,CRIMINAL ENFORCEMENT                                                                                ,Staff Payment,BA0000306290,4.95,                      
BEIS,The Insolvency Service,06/07/2017,Travel and Subsistence,CRIMINAL ENFORCEMENT                                                                                ,Staff Payment,BA0000306290,5.00,                      
BEIS,The Insolvency Service,06/07/2017,Travel and Subsistence,CRIMINAL ENFORCEMENT                                                                                ,Staff Payment,BA0000306290,20.70,                      
BEIS,The Insolvency Service,06/07/2017,Travel and Subsistence,CRIMINAL ENFORCEMENT                                                                                ,Staff Payment,BA0000306290,27.90,                      
BEIS,The Insolvency Service,06/07/2017,Travel and Subsistence,CRIMINAL ENFORCEMENT                                                                                ,Staff Payment,BA0000306290,30.60,                      
BEIS,The Insolvency Service,06/07/2017,Travel and Subsistence,CRIMINAL ENFORCEMENT                                                                                ,Staff Payment,BA0000306290,41.40,                      
BEIS,The Insolvency Service,06/07/2017,Travel and Subsistence,CRIMINAL ENFORCEMENT                                                                                ,Staff Payment,BA0000306290,55.80,                      
BEIS,The Insolvency Service,06/07/2017,Travel and Subsistence,CRIMINAL ENFORCEMENT                                                                                ,Staff Payment,BA0000306290,60.30,                      
BEIS,The Insolvency Service,06/07/2017,Travel and Subsistence,CRIMINAL ENFORCEMENT                                                                                ,Staff Payment,BA0000306290,65.70,                      
BEIS,The Insolvency Service,06/07/2017,Travel and Subsistence,CRIMINAL ENFORCEMENT                                                                                ,Staff Payment,BA0000306290,1.00,                      
BEIS,The Insolvency Service,06/07/2017,Travel and Subsistence,CRIMINAL ENFORCEMENT                                                                                ,Staff Payment,BA0000306290,3.05,                      
BEIS,The Insolvency Service,06/07/2017,Travel and Subsistence,CRIMINAL ENFORCEMENT                                                                                ,Staff Payment,BA0000306290,3.30,                      
BEIS,The Insolvency Service,06/07/2017,Travel and Subsistence,CRIMINAL ENFORCEMENT                                                                                ,Staff Payment,BA0000306290,4.00,                      
BEIS,The Insolvency Service,06/07/2017,Travel and Subsistence,CRIMINAL ENFORCEMENT                                                                                ,Staff Payment,BA0000306290,10.50,                      
BEIS,The Insolvency Service,06/07/2017,Travel and Subsistence,CRIMINAL ENFORCEMENT                                                                                ,Staff Payment,BA0000306290,25.20,                      
BEIS,The Insolvency Service,06/07/2017,Travel and Subsistence,CRIMINAL ENFORCEMENT                                                                                ,Staff Payment,BA0000306290,28.80,                      
BEIS,The Insolvency Service,06/07/2017,Travel and Subsistence,CRIMINAL ENFORCEMENT                                                                                ,Staff Payment,BA0000306290,30.15,                      
BEIS,The Insolvency Service,06/07/2017,Travel and Subsistence,CRIMINAL ENFORCEMENT                                                                                ,Staff Payment,BA0000306290,76.05,                      
BEIS,The Insolvency Service,06/07/2017,Travel and Subsistence,CRIMINAL ENFORCEMENT                                                                                ,Staff Payment,BA0000306290,2.90,                      
BEIS,The Insolvency Service,06/07/2017,Travel and Subsistence,CRIMINAL ENFORCEMENT                                                                                ,Staff Payment,BA0000306290,5.00,                      
BEIS,The Insolvency Service,06/07/2017,Travel and Subsistence,CRIMINAL ENFORCEMENT                                                                                ,Staff Payment,BA0000306290,9.00,                      
BEIS,The Insolvency Service,06/07/2017,Travel and Subsistence,CRIMINAL ENFORCEMENT                                                                                ,Staff Payment,BA0000306290,11.70,                      
BEIS,The Insolvency Service,06/07/2017,Travel and Subsistence,CRIMINAL ENFORCEMENT                                                                                ,Staff Payment,BA0000306290,14.00,                      
BEIS,The Insolvency Service,06/07/2017,Travel and Subsistence,CRIMINAL ENFORCEMENT                                                                                ,Staff Payment,BA0000306290,14.50,                      
BEIS,The Insolvency Service,06/07/2017,Travel and Subsistence,CRIMINAL ENFORCEMENT                                                                                ,Staff Payment,BA0000306290,15.00,                      
BEIS,The Insolvency Service,06/07/2017,Travel and Subsistence,CRIMINAL ENFORCEMENT                                                                                ,Staff Payment,BA0000306290,55.80,                      
BEIS,The Insolvency Service,06/07/2017,Travel and Subsistence,CRIMINAL ENFORCEMENT                                                                                ,Staff Payment,BA0000306290,70.65,                      
BEIS,The Insolvency Service,06/07/2017,Travel and Subsistence,CRIMINAL ENFORCEMENT                                                                                ,Staff Payment,BA0000306290,2.50,                      
BEIS,The Insolvency Service,06/07/2017,Travel and Subsistence,CRIMINAL ENFORCEMENT                                                                                ,Staff Payment,BA0000306290,5.00,                      
BEIS,The Insolvency Service,06/07/2017,Travel and Subsistence,CRIMINAL ENFORCEMENT                                                                                ,Staff Payment,BA0000306290,5.20,                      
BEIS,The Insolvency Service,06/07/2017,Travel and Subsistence,CRIMINAL ENFORCEMENT                                                                                ,Staff Payment,BA0000306290,43.65,                      
BEIS,The Insolvency Service,06/07/2017,Travel and Subsistence,CRIMINAL ENFORCEMENT                                                                                ,Staff Payment,BA0000306290,45.90,                      
BEIS,The Insolvency Service,06/07/2017,Travel and Subsistence,CRIMINAL ENFORCEMENT                                                                                ,Staff Payment,BA0000306290,1.80,                      
BEIS,The Insolvency Service,06/07/2017,Travel and Subsistence,CRIMINAL ENFORCEMENT                                                                                ,Staff Payment,BA0000306290,4.60,                      
BEIS,The Insolvency Service,06/07/2017,Travel and Subsistence,CRIMINAL ENFORCEMENT                                                                                ,Staff Payment,BA0000306290,4.80,                      
BEIS,The Insolvency Service,06/07/2017,Travel and Subsistence,CRIMINAL ENFORCEMENT                                                                                ,Staff Payment,BA0000306290,5.00,                      
BEIS,The Insolvency Service,06/07/2017,Travel and Subsistence,CRIMINAL ENFORCEMENT                                                                                ,Staff Payment,BA0000306290,5.00,                      
BEIS,The Insolvency Service,06/07/2017,Travel and Subsistence,CRIMINAL ENFORCEMENT                                                                                ,Staff Payment,BA0000306290,6.50,                      
BEIS,The Insolvency Service,06/07/2017,Travel and Subsistence,CRIMINAL ENFORCEMENT                                                                                ,Staff Payment,BA0000306290,7.50,                      
BEIS,The Insolvency Service,06/07/2017,Travel and Subsistence,CRIMINAL ENFORCEMENT                                                                                ,Staff Payment,BA0000306290,7.65,                      
BEIS,The Insolvency Service,06/07/2017,Travel and Subsistence,CRIMINAL ENFORCEMENT                                                                                ,Staff Payment,BA0000306290,22.00,                      
BEIS,The Insolvency Service,06/07/2017,Travel and Subsistence,CRIMINAL ENFORCEMENT                                                                                ,Staff Payment,BA0000306290,26.10,                      
BEIS,The Insolvency Service,06/07/2017,Travel and Subsistence,CRIMINAL ENFORCEMENT                                                                                ,Staff Payment,BA0000306290,83.00,                      
BEIS,The Insolvency Service,06/07/2017,Travel and Subsistence,CRIMINAL ENFORCEMENT                                                                                ,Staff Payment,BA0000306290,3.30,                      
BEIS,The Insolvency Service,06/07/2017,Travel and Subsistence,CRIMINAL ENFORCEMENT                                                                                ,Staff Payment,BA0000306290,5.00,                      
BEIS,The Insolvency Service,06/07/2017,Travel and Subsistence,CRIMINAL ENFORCEMENT                                                                                ,Staff Payment,BA0000306290,9.00,                      
BEIS,The Insolvency Service,06/07/2017,Travel and Subsistence,CRIMINAL ENFORCEMENT                                                                                ,Staff Payment,BA0000306290,18.00,                      
BEIS,The Insolvency Service,06/07/2017,Travel and Subsistence,CRIMINAL ENFORCEMENT                                                                                ,Staff Payment,BA0000306290,32.40,                      
BEIS,The Insolvency Service,06/07/2017,Travel and Subsistence,CRIMINAL ENFORCEMENT                                                                                ,Staff Payment,BA0000306290,33.30,                      
BEIS,The Insolvency Service,06/07/2017,Travel and Subsistence,INVESTIGATIONS & ENFORCEMENT                                                                        ,Staff Payment,BA0000306290,1.80,
BEIS,The Insolvency Service,06/07/2017,Travel and Subsistence,OFFICIAL RECEIVER SERVICES                                                                          ,Staff Payment,BA0000306287,4.50,
BEIS,The Insolvency Service,06/07/2017,Travel and Subsistence,OFFICIAL RECEIVER SERVICES                                                                          ,Staff Payment,BA0000306287,37.80,
BEIS,The Insolvency Service,06/07/2017,Travel and Subsistence,OFFICIAL RECEIVER SERVICES                                                                          ,Staff Payment,BA0000306287,47.25,
BEIS,The Insolvency Service,07/07/2017,Agency Workers,FINANCE AND COMMERCIAL,BROOK STREET (UK) LTD,BA0000306301,25172.12,
BEIS,The Insolvency Service,07/07/2017,Agency Workers,INFORMATION TECHNOLOGY                                                                              ,CONCEPT INFORMATION TECHNOLOGY LTD                          ,BA0000306305,1875.00,776147892
BEIS,The Insolvency Service,07/07/2017,Employee Related Costs,FINANCE AND COMMERCIAL                                                                              ,Staff Payment,BA0000306292,134.60,                      
BEIS,The Insolvency Service,07/07/2017,Employee Related Costs,INVESTIGATIONS & ENFORCEMENT                                                                        ,Staff Payment,BA0000306292,12.00,
BEIS,The Insolvency Service,07/07/2017,Employee Related Costs,OFFICIAL RECEIVER SERVICES                                                                          ,Staff Payment,BA0000306292,2.60,
BEIS,The Insolvency Service,07/07/2017,Employee Related Costs,OFFICIAL RECEIVER SERVICES                                                                          ,Staff Payment,BA0000306292,4.00,
BEIS,The Insolvency Service,07/07/2017,Employee Related Costs,P&C - People Relations                                                                              ,Staff Payment,BA0000306306,153.00,
BEIS,The Insolvency Service,07/07/2017,Employee Related Costs,PEOPLE & CAPABILITY                                                                                 ,Staff Payment,BA0000306293,153.00,
BEIS,The Insolvency Service,07/07/2017,Insolvency Case Related Costs,INVESTIGATIONS & ENFORCEMENT                                                                        ,Staff Payment,BA0000306292,7.00,
BEIS,The Insolvency Service,07/07/2017,Insolvency Case Related Costs,OFFICIAL RECEIVER SERVICES                                                                          ,COMPANIES HOUSE,BA0000306303,4.00,GD255
BEIS,The Insolvency Service,07/07/2017,Office Supplies and Services,CRIMINAL ENFORCEMENT                                                                                ,Staff Payment,BA0000306293,5.00,                      
BEIS,The Insolvency Service,07/07/2017,Office Supplies and Services,CRIMINAL ENFORCEMENT                                                                                ,Staff Payment,BA0000306293,1.75,                      
BEIS,The Insolvency Service,07/07/2017,Office Supplies and Services,CRIMINAL ENFORCEMENT                                                                                ,Staff Payment,BA0000306306,5.00,                      
BEIS,The Insolvency Service,07/07/2017,Office Supplies and Services,CRIMINAL ENFORCEMENT                                                                                ,Staff Payment,BA0000306306,5.00,                      
BEIS,The Insolvency Service,07/07/2017,Office Supplies and Services,INVESTIGATIONS & ENFORCEMENT                                                                        ,Staff Payment,BA0000306306,16.00,
BEIS,The Insolvency Service,07/07/2017,Office Supplies and Services,PEOPLE & CAPABILITY                                                                                 ,Staff Payment,BA0000306293,5.00,
BEIS,The Insolvency Service,07/07/2017,Training Costs,INFORMATION TECHNOLOGY                                                                              ,KPMG LLP                                                    ,BA0000306299,199.00,                      
BEIS,The Insolvency Service,07/07/2017,Training Costs,PEOPLE & CAPABILITY                                                                                 ,Consensio Partners Resolution Ltd                           ,BA0000306300,300.00,                      
BEIS,The Insolvency Service,07/07/2017,Travel and Subsistence,BUSINESS SERVICES DIRECTORATE                                                                       ,Staff Payment,BA0000306293,8.65,
BEIS,The Insolvency Service,07/07/2017,Travel and Subsistence,BUSINESS SERVICES DIRECTORATE                                                                       ,Staff Payment,BA0000306293,15.00,
BEIS,The Insolvency Service,07/07/2017,Travel and Subsistence,BUSINESS SERVICES DIRECTORATE                                                                       ,Staff Payment,BA0000306293,3.95,
BEIS,The Insolvency Service,07/07/2017,Travel and Subsistence,BUSINESS SERVICES DIRECTORATE                                                                       ,Staff Payment,BA0000306293,2.45,
BEIS,The Insolvency Service,07/07/2017,Travel and Subsistence,BUSINESS SERVICES DIRECTORATE                                                                       ,Staff Payment,BA0000306293,5.00,
BEIS,The Insolvency Service,07/07/2017,Travel and Subsistence,BUSINESS SERVICES DIRECTORATE                                                                       ,Staff Payment,BA0000306292,3.34,
BEIS,The Insolvency Service,07/07/2017,Travel and Subsistence,BUSINESS SERVICES DIRECTORATE                                                                       ,Staff Payment,BA0000306292,4.50,
BEIS,The Insolvency Service,07/07/2017,Travel and Subsistence,BUSINESS SERVICES DIRECTORATE                                                                       ,Staff Payment,BA0000306292,5.00,
BEIS,The Insolvency Service,07/07/2017,Travel and Subsistence,BUSINESS SERVICES DIRECTORATE                                                                       ,Staff Payment,BA0000306292,14.25,
BEIS,The Insolvency Service,07/07/2017,Travel and Subsistence,BUSINESS SERVICES DIRECTORATE                                                                       ,Staff Payment,BA0000306292,20.00,
BEIS,The Insolvency Service,07/07/2017,Travel and Subsistence,BUSINESS SERVICES DIRECTORATE                                                                       ,Staff Payment,BA0000306292,33.75,
BEIS,The Insolvency Service,07/07/2017,Travel and Subsistence,BUSINESS SERVICES DIRECTORATE                                                                       ,Staff Payment,BA0000306292,38.25,
BEIS,The Insolvency Service,07/07/2017,Travel and Subsistence,BUSINESS SERVICES DIRECTORATE                                                                       ,Staff Payment,BA0000306292,60.75,
BEIS,The Insolvency Service,07/07/2017,Travel and Subsistence,BUSINESS SERVICES DIRECTORATE                                                                       ,Staff Payment,BA0000306292,5.00,
BEIS,The Insolvency Service,07/07/2017,Travel and Subsistence,BUSINESS SERVICES DIRECTORATE                                                                       ,Staff Payment,BA0000306292,5.00,
BEIS,The Insolvency Service,07/07/2017,Travel and Subsistence,BUSINESS SERVICES DIRECTORATE                                                                       ,Staff Payment,BA0000306292,5.40,
BEIS,The Insolvency Service,07/07/2017,Travel and Subsistence,BUSINESS SERVICES DIRECTORATE                                                                       ,Staff Payment,BA0000306292,5.50,
BEIS,The Insolvency Service,07/07/2017,Travel and Subsistence,BUSINESS SERVICES DIRECTORATE                                                                       ,Staff Payment,BA0000306292,7.00,
BEIS,The Insolvency Service,07/07/2017,Travel and Subsistence,BUSINESS SERVICES DIRECTORATE                                                                       ,Staff Payment,BA0000306292,7.10,
BEIS,The Insolvency Service,07/07/2017,Travel and Subsistence,BUSINESS SERVICES DIRECTORATE                                                                       ,Staff Payment,BA0000306292,13.90,
BEIS,The Insolvency Service,07/07/2017,Travel and Subsistence,BUSINESS SERVICES DIRECTORATE                                                                       ,Staff Payment,BA0000306306,5.00,                      
BEIS,The Insolvency Service,07/07/2017,Travel and Subsistence,BUSINESS SERVICES DIRECTORATE                                                                       ,Staff Payment,BA0000306306,7.75,                      
BEIS,The Insolvency Service,07/07/2017,Travel and Subsistence,BUSINESS SERVICES DIRECTORATE                                                                       ,Staff Payment,BA0000306306,7.80,                      
BEIS,The Insolvency Service,07/07/2017,Travel and Subsistence,CHIEF EXECUTIVE DIVISION                                                                            ,Staff Payment,BA0000306292,2.40,
BEIS,The Insolvency Service,07/07/2017,Travel and Subsistence,CHIEF EXECUTIVE DIVISION                                                                            ,Staff Payment,BA0000306292,3.20,
BEIS,The Insolvency Service,07/07/2017,Travel and Subsistence,CHIEF EXECUTIVE DIVISION                                                                            ,Staff Payment,BA0000306292,3.60,
BEIS,The Insolvency Service,07/07/2017,Travel and Subsistence,CHIEF EXECUTIVE DIVISION                                                                            ,Staff Payment,BA0000306292,7.20,
BEIS,The Insolvency Service,07/07/2017,Travel and Subsistence,CHIEF EXECUTIVE DIVISION                                                                            ,Staff Payment,BA0000306292,3.60,
BEIS,The Insolvency Service,07/07/2017,Travel and Subsistence,CHIEF EXECUTIVE DIVISION                                                                            ,Staff Payment,BA0000306292,7.00,
BEIS,The Insolvency Service,07/07/2017,Travel and Subsistence,CRIMINAL ENFORCEMENT                                                                                ,Staff Payment,BA0000306292,3.00,                      
BEIS,The Insolvency Service,07/07/2017,Travel and Subsistence,CRIMINAL ENFORCEMENT                                                                                ,Staff Payment,BA0000306292,5.00,                      
BEIS,The Insolvency Service,07/07/2017,Travel and Subsistence,CRIMINAL ENFORCEMENT                                                                                ,Staff Payment,BA0000306292,12.00,                      
BEIS,The Insolvency Service,07/07/2017,Travel and Subsistence,CRIMINAL ENFORCEMENT                                                                                ,Staff Payment,BA0000306292,15.00,                      
BEIS,The Insolvency Service,07/07/2017,Travel and Subsistence,CRIMINAL ENFORCEMENT                                                                                ,Staff Payment,BA0000306292,74.25,                      
BEIS,The Insolvency Service,07/07/2017,Travel and Subsistence,CRIMINAL ENFORCEMENT                                                                                ,Staff Payment,BA0000306292,81.00,                      
BEIS,The Insolvency Service,07/07/2017,Travel and Subsistence,CRIMINAL ENFORCEMENT                                                                                ,Staff Payment,BA0000306293,22.95,                      
BEIS,The Insolvency Service,07/07/2017,Travel and Subsistence,CRIMINAL ENFORCEMENT                                                                                ,Staff Payment,BA0000306293,24.30,                      
BEIS,The Insolvency Service,07/07/2017,Travel and Subsistence,CRIMINAL ENFORCEMENT                                                                                ,Staff Payment,BA0000306292,30.15,                      
BEIS,The Insolvency Service,07/07/2017,Travel and Subsistence,CRIMINAL ENFORCEMENT                                                                                ,Staff Payment,BA0000306292,30.60,                      
BEIS,The Insolvency Service,07/07/2017,Travel and Subsistence,CRIMINAL ENFORCEMENT                                                                                ,Staff Payment,BA0000306292,64.35,                      
BEIS,The Insolvency Service,07/07/2017,Travel and Subsistence,CRIMINAL ENFORCEMENT                                                                                ,Staff Payment,BA0000306293,3.80,                      
BEIS,The Insolvency Service,07/07/2017,Travel and Subsistence,CRIMINAL ENFORCEMENT                                                                                ,Staff Payment,BA0000306293,5.00,                      
BEIS,The Insolvency Service,07/07/2017,Travel and Subsistence,CRIMINAL ENFORCEMENT                                                                                ,Staff Payment,BA0000306293,10.35,                      
BEIS,The Insolvency Service,07/07/2017,Travel and Subsistence,CRIMINAL ENFORCEMENT                                                                                ,Staff Payment,BA0000306293,16.00,                      
BEIS,The Insolvency Service,07/07/2017,Travel and Subsistence,CRIMINAL ENFORCEMENT                                                                                ,Staff Payment,BA0000306293,34.20,                      
BEIS,The Insolvency Service,07/07/2017,Travel and Subsistence,CRIMINAL ENFORCEMENT                                                                                ,Staff Payment,BA0000306293,37.80,                      
BEIS,The Insolvency Service,07/07/2017,Travel and Subsistence,CRIMINAL ENFORCEMENT                                                                                ,Staff Payment,BA0000306293,4.80,                      
BEIS,The Insolvency Service,07/07/2017,Travel and Subsistence,CRIMINAL ENFORCEMENT                                                                                ,Staff Payment,BA0000306293,5.00,                      
BEIS,The Insolvency Service,07/07/2017,Travel and Subsistence,CRIMINAL ENFORCEMENT                                                                                ,Staff Payment,BA0000306293,14.40,                      
BEIS,The Insolvency Service,07/07/2017,Travel and Subsistence,CRIMINAL ENFORCEMENT                                                                                ,Staff Payment,BA0000306293,43.20,                      
BEIS,The Insolvency Service,07/07/2017,Travel and Subsistence,CRIMINAL ENFORCEMENT                                                                                ,Staff Payment,BA0000306293,47.70,                      
BEIS,The Insolvency Service,07/07/2017,Travel and Subsistence,CRIMINAL ENFORCEMENT                                                                                ,Staff Payment,BA0000306293,4.39,                      
BEIS,The Insolvency Service,07/07/2017,Travel and Subsistence,CRIMINAL ENFORCEMENT                                                                                ,Staff Payment,BA0000306293,6.70,                      
BEIS,The Insolvency Service,07/07/2017,Travel and Subsistence,CRIMINAL ENFORCEMENT                                                                                ,Staff Payment,BA0000306293,7.00,                      
BEIS,The Insolvency Service,07/07/2017,Travel and Subsistence,CRIMINAL ENFORCEMENT                                                                                ,Staff Payment,BA0000306293,11.70,                      
BEIS,The Insolvency Service,07/07/2017,Travel and Subsistence,CRIMINAL ENFORCEMENT                                                                                ,Staff Payment,BA0000306293,25.20,                      
BEIS,The Insolvency Service,07/07/2017,Travel and Subsistence,CRIMINAL ENFORCEMENT                                                                                ,Staff Payment,BA0000306293,89.10,                      
BEIS,The Insolvency Service,07/07/2017,Travel and Subsistence,CRIMINAL ENFORCEMENT                                                                                ,Staff Payment,BA0000306293,4.50,                      
BEIS,The Insolvency Service,07/07/2017,Travel and Subsistence,CRIMINAL ENFORCEMENT                                                                                ,Staff Payment,BA0000306293,13.10,                      
BEIS,The Insolvency Service,07/07/2017,Travel and Subsistence,CRIMINAL ENFORCEMENT                                                                                ,Staff Payment,BA0000306306,2.70,                      
BEIS,The Insolvency Service,07/07/2017,Travel and Subsistence,CRIMINAL ENFORCEMENT                                                                                ,Staff Payment,BA0000306306,5.00,                      
BEIS,The Insolvency Service,07/07/2017,Travel and Subsistence,CRIMINAL ENFORCEMENT                                                                                ,Staff Payment,BA0000306306,8.10,                      
BEIS,The Insolvency Service,07/07/2017,Travel and Subsistence,CRIMINAL ENFORCEMENT                                                                                ,Staff Payment,BA0000306306,4.60,                      
BEIS,The Insolvency Service,07/07/2017,Travel and Subsistence,CRIMINAL ENFORCEMENT                                                                                ,Staff Payment,BA0000306306,15.00,                      
BEIS,The Insolvency Service,07/07/2017,Travel and Subsistence,CRIMINAL ENFORCEMENT                                                                                ,Staff Payment,BA0000306306,53.10,                      
BEIS,The Insolvency Service,07/07/2017,Travel and Subsistence,CRIMINAL ENFORCEMENT                                                                                ,Staff Payment,BA0000306306,55.80,                      
BEIS,The Insolvency Service,07/07/2017,Travel and Subsistence,CRIMINAL ENFORCEMENT                                                                                ,Staff Payment,BA0000306306,28.80,                      
BEIS,The Insolvency Service,07/07/2017,Travel and Subsistence,CRIMINAL ENFORCEMENT                                                                                ,Staff Payment,BA0000306306,31.50,                      
BEIS,The Insolvency Service,07/07/2017,Travel and Subsistence,CRIMINAL ENFORCEMENT                                                                                ,Staff Payment,BA0000306306,34.20,                      
BEIS,The Insolvency Service,07/07/2017,Travel and Subsistence,CRIMINAL ENFORCEMENT                                                                                ,Staff Payment,BA0000306306,40.50,                      
BEIS,The Insolvency Service,07/07/2017,Travel and Subsistence,CRIMINAL ENFORCEMENT                                                                                ,Staff Payment,BA0000306293,3.50,                      
BEIS,The Insolvency Service,07/07/2017,Travel and Subsistence,CRIMINAL ENFORCEMENT                                                                                ,Staff Payment,BA0000306293,5.00,                      
BEIS,The Insolvency Service,07/07/2017,Travel and Subsistence,CRIMINAL ENFORCEMENT                                                                                ,Staff Payment,BA0000306293,6.30,                      
BEIS,The Insolvency Service,07/07/2017,Travel and Subsistence,CRIMINAL ENFORCEMENT                                                                                ,Staff Payment,BA0000306293,14.85,                      
BEIS,The Insolvency Service,07/07/2017,Travel and Subsistence,CRIMINAL ENFORCEMENT                                                                                ,Staff Payment,BA0000306293,52.20,                      
BEIS,The Insolvency Service,07/07/2017,Travel and Subsistence,CRIMINAL ENFORCEMENT                                                                                ,Staff Payment,BA0000306293,97.20,                      
BEIS,The Insolvency Service,07/07/2017,Travel and Subsistence,CRIMINAL ENFORCEMENT                                                                                ,Staff Payment,BA0000306292,3.95,                      
BEIS,The Insolvency Service,07/07/2017,Travel and Subsistence,CRIMINAL ENFORCEMENT                                                                                ,Staff Payment,BA0000306292,9.45,                      
BEIS,The Insolvency Service,07/07/2017,Travel and Subsistence,CRIMINAL ENFORCEMENT                                                                                ,Staff Payment,BA0000306292,56.25,                      
BEIS,The Insolvency Service,07/07/2017,Travel and Subsistence,CRIMINAL ENFORCEMENT                                                                                ,Staff Payment,BA0000306306,2.00,                      
BEIS,The Insolvency Service,07/07/2017,Travel and Subsistence,CRIMINAL ENFORCEMENT                                                                                ,Staff Payment,BA0000306306,3.40,                      
BEIS,The Insolvency Service,07/07/2017,Travel and Subsistence,CRIMINAL ENFORCEMENT                                                                                ,Staff Payment,BA0000306306,4.00,                      
BEIS,The Insolvency Service,07/07/2017,Travel and Subsistence,CRIMINAL ENFORCEMENT                                                                                ,Staff Payment,BA0000306306,5.00,                      
BEIS,The Insolvency Service,07/07/2017,Travel and Subsistence,CRIMINAL ENFORCEMENT                                                                                ,Staff Payment,BA0000306306,5.00,                      
BEIS,The Insolvency Service,07/07/2017,Travel and Subsistence,CRIMINAL ENFORCEMENT                                                                                ,Staff Payment,BA0000306306,14.04,                      
BEIS,The Insolvency Service,07/07/2017,Travel and Subsistence,CRIMINAL ENFORCEMENT                                                                                ,Staff Payment,BA0000306306,14.49,                      
BEIS,The Insolvency Service,07/07/2017,Travel and Subsistence,CRIMINAL ENFORCEMENT                                                                                ,Staff Payment,BA0000306306,23.40,                      
BEIS,The Insolvency Service,07/07/2017,Travel and Subsistence,CRIMINAL ENFORCEMENT                                                                                ,Staff Payment,BA0000306306,34.65,                      
BEIS,The Insolvency Service,07/07/2017,Travel and Subsistence,CRIMINAL ENFORCEMENT                                                                                ,Staff Payment,BA0000306306,37.35,                      
BEIS,The Insolvency Service,07/07/2017,Travel and Subsistence,CRIMINAL ENFORCEMENT                                                                                ,Staff Payment,BA0000306306,71.10,                      
BEIS,The Insolvency Service,07/07/2017,Travel and Subsistence,CRIMINAL ENFORCEMENT                                                                                ,Staff Payment,BA0000306306,111.60,                      
BEIS,The Insolvency Service,07/07/2017,Travel and Subsistence,CRIMINAL ENFORCEMENT                                                                                ,Staff Payment,BA0000306306,112.05,                      
BEIS,The Insolvency Service,07/07/2017,Travel and Subsistence,CRIMINAL ENFORCEMENT                                                                                ,Staff Payment,BA0000306306,0.45,                      
BEIS,The Insolvency Service,07/07/2017,Travel and Subsistence,CRIMINAL ENFORCEMENT                                                                                ,Staff Payment,BA0000306306,3.00,                      
BEIS,The Insolvency Service,07/07/2017,Travel and Subsistence,CRIMINAL ENFORCEMENT                                                                                ,Staff Payment,BA0000306306,3.50,                      
BEIS,The Insolvency Service,07/07/2017,Travel and Subsistence,CRIMINAL ENFORCEMENT                                                                                ,Staff Payment,BA0000306306,3.60,                      
BEIS,The Insolvency Service,07/07/2017,Travel and Subsistence,CRIMINAL ENFORCEMENT                                                                                ,Staff Payment,BA0000306306,4.65,                      
BEIS,The Insolvency Service,07/07/2017,Travel and Subsistence,CRIMINAL ENFORCEMENT                                                                                ,Staff Payment,BA0000306306,5.50,                      
BEIS,The Insolvency Service,07/07/2017,Travel and Subsistence,CRIMINAL ENFORCEMENT                                                                                ,Staff Payment,BA0000306306,27.90,                      
BEIS,The Insolvency Service,07/07/2017,Travel and Subsistence,CRIMINAL ENFORCEMENT                                                                                ,Staff Payment,BA0000306306,41.85,                      
BEIS,The Insolvency Service,07/07/2017,Travel and Subsistence,CRIMINAL ENFORCEMENT                                                                                ,Staff Payment,BA0000306306,43.20,                      
BEIS,The Insolvency Service,07/07/2017,Travel and Subsistence,CRIMINAL ENFORCEMENT                                                                                ,Staff Payment,BA0000306306,47.00,                      
BEIS,The Insolvency Service,07/07/2017,Travel and Subsistence,CUSTOMER AND COMMUNICATIONS                                                                         ,Staff Payment,BA0000306292,2.15,
BEIS,The Insolvency Service,07/07/2017,Travel and Subsistence,CUSTOMER AND COMMUNICATIONS                                                                         ,Staff Payment,BA0000306292,4.80,
BEIS,The Insolvency Service,07/07/2017,Travel and Subsistence,FINANCE AND COMMERCIAL                                                                              ,Staff Payment,BA0000306292,12.00,
BEIS,The Insolvency Service,07/07/2017,Travel and Subsistence,FINANCE AND COMMERCIAL                                                                              ,Staff Payment,BA0000306293,1.50,                      
BEIS,The Insolvency Service,07/07/2017,Travel and Subsistence,FINANCE AND COMMERCIAL                                                                              ,Staff Payment,BA0000306293,2.85,                      
BEIS,The Insolvency Service,07/07/2017,Travel and Subsistence,FINANCE AND COMMERCIAL                                                                              ,Staff Payment,BA0000306293,3.00,                      
BEIS,The Insolvency Service,07/07/2017,Travel and Subsistence,FINANCE AND COMMERCIAL                                                                              ,Staff Payment,BA0000306293,3.35,                      
BEIS,The Insolvency Service,07/07/2017,Travel and Subsistence,FINANCE AND COMMERCIAL                                                                              ,Staff Payment,BA0000306293,3.49,                      
BEIS,The Insolvency Service,07/07/2017,Travel and Subsistence,FINANCE AND COMMERCIAL                                                                              ,Staff Payment,BA0000306293,3.60,                      
BEIS,The Insolvency Service,07/07/2017,Travel and Subsistence,FINANCE AND COMMERCIAL                                                                              ,Staff Payment,BA0000306293,3.65,                      
BEIS,The Insolvency Service,07/07/2017,Travel and Subsistence,FINANCE AND COMMERCIAL                                                                              ,Staff Payment,BA0000306293,3.90,                      
BEIS,The Insolvency Service,07/07/2017,Travel and Subsistence,FINANCE AND COMMERCIAL                                                                              ,Staff Payment,BA0000306293,4.50,                      
BEIS,The Insolvency Service,07/07/2017,Travel and Subsistence,FINANCE AND COMMERCIAL                                                                              ,Staff Payment,BA0000306293,4.68,                      
BEIS,The Insolvency Service,07/07/2017,Travel and Subsistence,FINANCE AND COMMERCIAL                                                                              ,Staff Payment,BA0000306293,4.69,                      
BEIS,The Insolvency Service,07/07/2017,Travel and Subsistence,FINANCE AND COMMERCIAL                                                                              ,Staff Payment,BA0000306293,5.50,                      
BEIS,The Insolvency Service,07/07/2017,Travel and Subsistence,FINANCE AND COMMERCIAL                                                                              ,Staff Payment,BA0000306293,6.00,                      
BEIS,The Insolvency Service,07/07/2017,Travel and Subsistence,FINANCE AND COMMERCIAL                                                                              ,Staff Payment,BA0000306293,6.50,                      
BEIS,The Insolvency Service,07/07/2017,Travel and Subsistence,FINANCE AND COMMERCIAL                                                                              ,Staff Payment,BA0000306293,7.60,                      
BEIS,The Insolvency Service,07/07/2017,Travel and Subsistence,FINANCE AND COMMERCIAL                                                                              ,Staff Payment,BA0000306293,8.00,                      
BEIS,The Insolvency Service,07/07/2017,Travel and Subsistence,FINANCE AND COMMERCIAL                                                                              ,Staff Payment,BA0000306293,10.80,                      
BEIS,The Insolvency Service,07/07/2017,Travel and Subsistence,FINANCE AND COMMERCIAL                                                                              ,Staff Payment,BA0000306293,11.75,                      
BEIS,The Insolvency Service,07/07/2017,Travel and Subsistence,FINANCE AND COMMERCIAL                                                                              ,Staff Payment,BA0000306293,22.50,                      
BEIS,The Insolvency Service,07/07/2017,Travel and Subsistence,FINANCE AND COMMERCIAL                                                                              ,Staff Payment,BA0000306293,24.00,                      
BEIS,The Insolvency Service,07/07/2017,Travel and Subsistence,FINANCE AND COMMERCIAL                                                                              ,Staff Payment,BA0000306293,58.10,                      
BEIS,The Insolvency Service,07/07/2017,Travel and Subsistence,INFORMATION TECHNOLOGY                                                                              ,Staff Payment,BA0000306293,4.00,
BEIS,The Insolvency Service,07/07/2017,Travel and Subsistence,INFORMATION TECHNOLOGY                                                                              ,Staff Payment,BA0000306293,6.60,
BEIS,The Insolvency Service,07/07/2017,Travel and Subsistence,INFORMATION TECHNOLOGY                                                                              ,Staff Payment,BA0000306293,7.30,
BEIS,The Insolvency Service,07/07/2017,Travel and Subsistence,INVESTIGATIONS & ENFORCEMENT                                                                        ,Staff Payment,BA0000306292,5.00,                      
BEIS,The Insolvency Service,07/07/2017,Travel and Subsistence,INVESTIGATIONS & ENFORCEMENT                                                                        ,Staff Payment,BA0000306292,4.35,
BEIS,The Insolvency Service,07/07/2017,Travel and Subsistence,INVESTIGATIONS & ENFORCEMENT                                                                        ,Staff Payment,BA0000306292,4.60,
BEIS,The Insolvency Service,07/07/2017,Travel and Subsistence,INVESTIGATIONS & ENFORCEMENT                                                                        ,Staff Payment,BA0000306292,4.25,
BEIS,The Insolvency Service,07/07/2017,Travel and Subsistence,INVESTIGATIONS & ENFORCEMENT                                                                        ,Staff Payment,BA0000306292,5.00,
BEIS,The Insolvency Service,07/07/2017,Travel and Subsistence,INVESTIGATIONS & ENFORCEMENT                                                                        ,Staff Payment,BA0000306292,1.95,
BEIS,The Insolvency Service,07/07/2017,Travel and Subsistence,INVESTIGATIONS & ENFORCEMENT                                                                        ,Staff Payment,BA0000306292,2.20,
BEIS,The Insolvency Service,07/07/2017,Travel and Subsistence,INVESTIGATIONS & ENFORCEMENT                                                                        ,Staff Payment,BA0000306292,3.20,
BEIS,The Insolvency Service,07/07/2017,Travel and Subsistence,INVESTIGATIONS & ENFORCEMENT                                                                        ,Staff Payment,BA0000306292,3.80,
BEIS,The Insolvency Service,07/07/2017,Travel and Subsistence,INVESTIGATIONS & ENFORCEMENT                                                                        ,Staff Payment,BA0000306292,4.35,
BEIS,The Insolvency Service,07/07/2017,Travel and Subsistence,INVESTIGATIONS & ENFORCEMENT                                                                        ,Staff Payment,BA0000306292,5.00,
BEIS,The Insolvency Service,07/07/2017,Travel and Subsistence,INVESTIGATIONS & ENFORCEMENT                                                                        ,Staff Payment,BA0000306292,6.40,
BEIS,The Insolvency Service,07/07/2017,Travel and Subsistence,INVESTIGATIONS & ENFORCEMENT                                                                        ,Staff Payment,BA0000306292,8.45,
BEIS,The Insolvency Service,07/07/2017,Travel and Subsistence,INVESTIGATIONS & ENFORCEMENT                                                                        ,Staff Payment,BA0000306292,15.00,
BEIS,The Insolvency Service,07/07/2017,Travel and Subsistence,INVESTIGATIONS & ENFORCEMENT                                                                        ,Staff Payment,BA0000306292,2.40,
BEIS,The Insolvency Service,07/07/2017,Travel and Subsistence,INVESTIGATIONS & ENFORCEMENT                                                                        ,Staff Payment,BA0000306292,5.00,
BEIS,The Insolvency Service,07/07/2017,Travel and Subsistence,INVESTIGATIONS & ENFORCEMENT                                                                        ,Staff Payment,BA0000306292,1.67,
BEIS,The Insolvency Service,07/07/2017,Travel and Subsistence,INVESTIGATIONS & ENFORCEMENT                                                                        ,Staff Payment,BA0000306292,5.00,
BEIS,The Insolvency Service,07/07/2017,Travel and Subsistence,INVESTIGATIONS & ENFORCEMENT                                                                        ,Staff Payment,BA0000306292,77.85,
BEIS,The Insolvency Service,07/07/2017,Travel and Subsistence,INVESTIGATIONS & ENFORCEMENT                                                                        ,Staff Payment,BA0000306292,2.40,
BEIS,The Insolvency Service,07/07/2017,Travel and Subsistence,INVESTIGATIONS & ENFORCEMENT                                                                        ,Staff Payment,BA0000306292,2.90,
BEIS,The Insolvency Service,07/07/2017,Travel and Subsistence,INVESTIGATIONS & ENFORCEMENT                                                                        ,Staff Payment,BA0000306306,5.00,
BEIS,The Insolvency Service,07/07/2017,Travel and Subsistence,INVESTIGATIONS & ENFORCEMENT                                                                        ,Staff Payment,BA0000306306,6.00,
BEIS,The Insolvency Service,07/07/2017,Travel and Subsistence,INVESTIGATIONS & ENFORCEMENT                                                                        ,Staff Payment,BA0000306306,13.58,
BEIS,The Insolvency Service,07/07/2017,Travel and Subsistence,INVESTIGATIONS & ENFORCEMENT                                                                        ,Staff Payment,BA0000306306,28.50,
BEIS,The Insolvency Service,07/07/2017,Travel and Subsistence,INVESTIGATIONS & ENFORCEMENT                                                                        ,Staff Payment,BA0000306292,8.55,
BEIS,The Insolvency Service,07/07/2017,Travel and Subsistence,INVESTIGATIONS & ENFORCEMENT                                                                        ,Staff Payment,BA0000306292,18.90,
BEIS,The Insolvency Service,07/07/2017,Travel and Subsistence,INVESTIGATIONS & ENFORCEMENT                                                                        ,Staff Payment,BA0000306292,27.50,
BEIS,The Insolvency Service,07/07/2017,Travel and Subsistence,INVESTIGATIONS & ENFORCEMENT                                                                        ,Staff Payment,BA0000306292,45.00,
BEIS,The Insolvency Service,07/07/2017,Travel and Subsistence,INVESTIGATIONS & ENFORCEMENT                                                                        ,Staff Payment,BA0000306292,49.50,
BEIS,The Insolvency Service,07/07/2017,Travel and Subsistence,OFFICIAL RECEIVER SERVICES                                                                          ,Staff Payment,BA0000306293,43.00,
BEIS,The Insolvency Service,07/07/2017,Travel and Subsistence,OFFICIAL RECEIVER SERVICES                                                                          ,Staff Payment,BA0000306292,5.00,
BEIS,The Insolvency Service,07/07/2017,Travel and Subsistence,OFFICIAL RECEIVER SERVICES                                                                          ,Staff Payment,BA0000306292,4.00,
BEIS,The Insolvency Service,07/07/2017,Travel and Subsistence,OFFICIAL RECEIVER SERVICES                                                                          ,Staff Payment,BA0000306292,9.00,
BEIS,The Insolvency Service,07/07/2017,Travel and Subsistence,OFFICIAL RECEIVER SERVICES                                                                          ,Staff Payment,BA0000306292,30.15,
BEIS,The Insolvency Service,07/07/2017,Travel and Subsistence,OFFICIAL RECEIVER SERVICES                                                                          ,Staff Payment,BA0000306293,1.60,
BEIS,The Insolvency Service,07/07/2017,Travel and Subsistence,OFFICIAL RECEIVER SERVICES                                                                          ,Staff Payment,BA0000306293,10.35,
BEIS,The Insolvency Service,07/07/2017,Travel and Subsistence,OFFICIAL RECEIVER SERVICES                                                                          ,Staff Payment,BA0000306293,29.70,
BEIS,The Insolvency Service,07/07/2017,Travel and Subsistence,OFFICIAL RECEIVER SERVICES                                                                          ,Staff Payment,BA0000306293,4.65,
BEIS,The Insolvency Service,07/07/2017,Travel and Subsistence,OFFICIAL RECEIVER SERVICES                                                                          ,Staff Payment,BA0000306293,2.80,
BEIS,The Insolvency Service,07/07/2017,Travel and Subsistence,OFFICIAL RECEIVER SERVICES                                                                          ,Staff Payment,BA0000306293,4.15,
BEIS,The Insolvency Service,07/07/2017,Travel and Subsistence,OFFICIAL RECEIVER SERVICES                                                                          ,Staff Payment,BA0000306293,4.45,
BEIS,The Insolvency Service,07/07/2017,Travel and Subsistence,OFFICIAL RECEIVER SERVICES                                                                          ,Staff Payment,BA0000306293,4.89,
BEIS,The Insolvency Service,07/07/2017,Travel and Subsistence,OFFICIAL RECEIVER SERVICES                                                                          ,Staff Payment,BA0000306293,5.00,
BEIS,The Insolvency Service,07/07/2017,Travel and Subsistence,OFFICIAL RECEIVER SERVICES                                                                          ,Staff Payment,BA0000306293,15.00,
BEIS,The Insolvency Service,07/07/2017,Travel and Subsistence,OFFICIAL RECEIVER SERVICES                                                                          ,Staff Payment,BA0000306293,3.00,
BEIS,The Insolvency Service,07/07/2017,Travel and Subsistence,OFFICIAL RECEIVER SERVICES                                                                          ,Staff Payment,BA0000306293,89.55,
BEIS,The Insolvency Service,07/07/2017,Travel and Subsistence,OFFICIAL RECEIVER SERVICES                                                                          ,Staff Payment,BA0000306293,4.60,                      
BEIS,The Insolvency Service,07/07/2017,Travel and Subsistence,OFFICIAL RECEIVER SERVICES                                                                          ,Staff Payment,BA0000306293,5.00,
BEIS,The Insolvency Service,07/07/2017,Travel and Subsistence,OFFICIAL RECEIVER SERVICES                                                                          ,Staff Payment,BA0000306293,11.95,
BEIS,The Insolvency Service,07/07/2017,Travel and Subsistence,OFFICIAL RECEIVER SERVICES                                                                          ,Staff Payment,BA0000306293,15.00,
BEIS,The Insolvency Service,07/07/2017,Travel and Subsistence,OFFICIAL RECEIVER SERVICES                                                                          ,Staff Payment,BA0000306293,11.25,
BEIS,The Insolvency Service,07/07/2017,Travel and Subsistence,OFFICIAL RECEIVER SERVICES                                                                          ,Staff Payment,BA0000306306,2.09,
BEIS,The Insolvency Service,07/07/2017,Travel and Subsistence,OFFICIAL RECEIVER SERVICES                                                                          ,Staff Payment,BA0000306306,4.27,
BEIS,The Insolvency Service,07/07/2017,Travel and Subsistence,OFFICIAL RECEIVER SERVICES                                                                          ,Staff Payment,BA0000306306,4.50,
BEIS,The Insolvency Service,07/07/2017,Travel and Subsistence,OFFICIAL RECEIVER SERVICES                                                                          ,Staff Payment,BA0000306306,10.00,
BEIS,The Insolvency Service,07/07/2017,Travel and Subsistence,OFFICIAL RECEIVER SERVICES                                                                          ,Staff Payment,BA0000306306,2.40,
BEIS,The Insolvency Service,07/07/2017,Travel and Subsistence,OFFICIAL RECEIVER SERVICES                                                                          ,Staff Payment,BA0000306306,4.15,
BEIS,The Insolvency Service,07/07/2017,Travel and Subsistence,OFFICIAL RECEIVER SERVICES                                                                          ,Staff Payment,BA0000306306,4.20,
BEIS,The Insolvency Service,07/07/2017,Travel and Subsistence,OFFICIAL RECEIVER SERVICES                                                                          ,Staff Payment,BA0000306306,4.75,
BEIS,The Insolvency Service,07/07/2017,Travel and Subsistence,OFFICIAL RECEIVER SERVICES                                                                          ,Staff Payment,BA0000306306,5.00,
BEIS,The Insolvency Service,07/07/2017,Travel and Subsistence,OFFICIAL RECEIVER SERVICES                                                                          ,Staff Payment,BA0000306306,14.30,
BEIS,The Insolvency Service,07/07/2017,Travel and Subsistence,OFFICIAL RECEIVER SERVICES                                                                          ,Staff Payment,BA0000306306,15.00,
BEIS,The Insolvency Service,07/07/2017,Travel and Subsistence,OFFICIAL RECEIVER SERVICES                                                                          ,Staff Payment,BA0000306306,2.00,
BEIS,The Insolvency Service,07/07/2017,Travel and Subsistence,OFFICIAL RECEIVER SERVICES                                                                          ,Staff Payment,BA0000306306,3.60,
BEIS,The Insolvency Service,07/07/2017,Travel and Subsistence,OFFICIAL RECEIVER SERVICES                                                                          ,Staff Payment,BA0000306306,5.00,
BEIS,The Insolvency Service,07/07/2017,Travel and Subsistence,OFFICIAL RECEIVER SERVICES                                                                          ,Staff Payment,BA0000306306,3.00,
BEIS,The Insolvency Service,07/07/2017,Travel and Subsistence,PEOPLE & CAPABILITY                                                                                 ,Staff Payment,BA0000306293,4.05,
BEIS,The Insolvency Service,07/07/2017,Travel and Subsistence,PEOPLE & CAPABILITY                                                                                 ,Staff Payment,BA0000306293,7.30,
BEIS,The Insolvency Service,07/07/2017,Travel and Subsistence,PEOPLE & CAPABILITY                                                                                 ,Staff Payment,BA0000306293,4.65,
BEIS,The Insolvency Service,07/07/2017,Travel and Subsistence,PEOPLE & CAPABILITY                                                                                 ,Staff Payment,BA0000306293,5.00,
BEIS,The Insolvency Service,07/07/2017,Travel and Subsistence,PEOPLE & CAPABILITY                                                                                 ,Staff Payment,BA0000306293,5.00,
BEIS,The Insolvency Service,07/07/2017,Travel and Subsistence,PEOPLE & CAPABILITY                                                                                 ,Staff Payment,BA0000306293,14.00,
BEIS,The Insolvency Service,07/07/2017,Travel and Subsistence,PEOPLE & CAPABILITY                                                                                 ,Staff Payment,BA0000306293,15.00,
BEIS,The Insolvency Service,07/07/2017,Travel and Subsistence,PEOPLE & CAPABILITY                                                                                 ,Staff Payment,BA0000306292,3.69,
BEIS,The Insolvency Service,07/07/2017,Travel and Subsistence,PEOPLE & CAPABILITY                                                                                 ,Staff Payment,BA0000306292,3.95,
BEIS,The Insolvency Service,07/07/2017,Travel and Subsistence,PEOPLE & CAPABILITY                                                                                 ,Staff Payment,BA0000306292,8.99,
BEIS,The Insolvency Service,10/07/2017,Computer and IT Systems,FINANCE AND COMMERCIAL,KYPERA LTD,BA0000306315,450.00,813905437
BEIS,The Insolvency Service,10/07/2017,Computer and IT Systems,FINANCE AND COMMERCIAL,KYPERA LTD,BA0000306316,450.00,813905437
BEIS,The Insolvency Service,10/07/2017,Computer and IT Systems,PROJECTS                                                                                            ,KYPERA LTD,BA0000306313,850.00,813905437
BEIS,The Insolvency Service,10/07/2017,Computer and IT Systems,PROJECTS                                                                                            ,KYPERA LTD,BA0000306314,850.00,813905437
BEIS,The Insolvency Service,10/07/2017,Computer and IT Systems,PROJECTS                                                                                            ,KYPERA LTD,BA0000306317,850.00,813905437
BEIS,The Insolvency Service,10/07/2017,Computer and IT Systems,PROJECTS                                                                                            ,KYPERA LTD,BA0000306318,425.00,813905437
BEIS,The Insolvency Service,10/07/2017,Computer and IT Systems,PROJECTS                                                                                            ,KYPERA LTD,BA0000306319,850.00,813905437
BEIS,The Insolvency Service,10/07/2017,Postage,OFFICIAL RECEIVER SERVICES                                                                          ,ROYAL MAIL GROUP LTD                   ,BA0000306310,90.99,243170002
BEIS,The Insolvency Service,12/07/2017,Investigation and Enforcement Costs,CRIMINAL ENFORCEMENT                                                                                ,23 ESSEX STREET,BA0000306383,812.88,524199244
BEIS,The Insolvency Service,12/07/2017,Investigation and Enforcement Costs,CRIMINAL ENFORCEMENT                                                                                ,23 ESSEX STREET,BA0000306384,132.00,524199244
BEIS,The Insolvency Service,12/07/2017,Investigation and Enforcement Costs,CRIMINAL ENFORCEMENT                                                                                ,Mendip Media Group Ltd,BA0000306385,90.52,609546425
BEIS,The Insolvency Service,12/07/2017,Investigation and Enforcement Costs,CRIMINAL ENFORCEMENT                                                                                ,Mendip Media Group Ltd,BA0000306386,242.35,609546425
BEIS,The Insolvency Service,12/07/2017,Investigation and Enforcement Costs,CRIMINAL ENFORCEMENT                                                                                ,Mendip Media Group Ltd,BA0000306387,138.62,609546425
BEIS,The Insolvency Service,12/07/2017,Insolvency Case Related Costs,INVESTIGATIONS & ENFORCEMENT                                                                        ,COMPANIES HOUSE,BA0000306389,4.00,GD255
BEIS,The Insolvency Service,12/07/2017,Insolvency Case Related Costs,INVESTIGATIONS & ENFORCEMENT                                                                        ,COMPANIES HOUSE,BA0000306390,17.00,GD255
BEIS,The Insolvency Service,12/07/2017,Insolvency Case Related Costs,INVESTIGATIONS & ENFORCEMENT                                                                        ,COMPANIES HOUSE,BA0000306391,10.00,GD255
BEIS,The Insolvency Service,12/07/2017,Insolvency Case Related Costs,INVESTIGATIONS & ENFORCEMENT                                                                        ,COMPANIES HOUSE,BA0000306392,4.00,GD255
BEIS,The Insolvency Service,12/07/2017,Insolvency Case Related Costs,INVESTIGATIONS & ENFORCEMENT                                                                        ,Staff Payment,BA0000306409,5.00,
BEIS,The Insolvency Service,12/07/2017,Insolvency Case Related Costs,INVESTIGATIONS & ENFORCEMENT                                                                        ,Staff Payment,BA0000306409,7.00,
BEIS,The Insolvency Service,12/07/2017,Insolvency Case Related Costs,OFFICIAL RECEIVER SERVICES                                                                          ,COMPANIES HOUSE,BA0000306380,4.00,GD255
BEIS,The Insolvency Service,12/07/2017,Investigation and Enforcement Costs,INVESTIGATIONS & ENFORCEMENT                                                                        ,GOWLING WRAGGE LAWRENCE GRAHAM  & CO                        ,BA0000306402,16.80,858698838
BEIS,The Insolvency Service,12/07/2017,Investigation and Enforcement Costs,INVESTIGATIONS & ENFORCEMENT                                                                        ,GOWLING WRAGGE LAWRENCE GRAHAM  & CO                        ,BA0000306402,193.20,858698838
BEIS,The Insolvency Service,12/07/2017,Investigation and Enforcement Costs,INVESTIGATIONS & ENFORCEMENT                                                                        ,GOWLING WRAGGE LAWRENCE GRAHAM  & CO                        ,BA0000306403,17479.41,858698838
BEIS,The Insolvency Service,12/07/2017,Investigation and Enforcement Costs,INVESTIGATIONS & ENFORCEMENT                                                                        ,GOWLING WRAGGE LAWRENCE GRAHAM  & CO                        ,BA0000306404,76587.96,858698838
BEIS,The Insolvency Service,12/07/2017,Investigation and Enforcement Costs,INVESTIGATIONS & ENFORCEMENT                                                                        ,GOWLING WRAGGE LAWRENCE GRAHAM  & CO                        ,BA0000306405,16806.77,858698838
BEIS,The Insolvency Service,12/07/2017,Investigation and Enforcement Costs,INVESTIGATIONS & ENFORCEMENT                                                                        ,GOWLING WRAGGE LAWRENCE GRAHAM  & CO                        ,BA0000306406,1106.97,858698838
BEIS,The Insolvency Service,12/07/2017,Investigation and Enforcement Costs,INVESTIGATIONS & ENFORCEMENT                                                                        ,HOWES PERCIVAL,BA0000306396,597.05,119523573
BEIS,The Insolvency Service,12/07/2017,Investigation and Enforcement Costs,INVESTIGATIONS & ENFORCEMENT                                                                        ,HOWES PERCIVAL,BA0000306397,6515.60,119523573
BEIS,The Insolvency Service,12/07/2017,Investigation and Enforcement Costs,INVESTIGATIONS & ENFORCEMENT                                                                        ,HOWES PERCIVAL,BA0000306398,77013.60,119523573
BEIS,The Insolvency Service,12/07/2017,Investigation and Enforcement Costs,INVESTIGATIONS & ENFORCEMENT                                                                        ,HOWES PERCIVAL,BA0000306399,45.40,119523573
BEIS,The Insolvency Service,12/07/2017,Investigation and Enforcement Costs,INVESTIGATIONS & ENFORCEMENT                                                                        ,HOWES PERCIVAL,BA0000306400,1585.00,119523573
BEIS,The Insolvency Service,12/07/2017,Investigation and Enforcement Costs,INVESTIGATIONS & ENFORCEMENT                                                                        ,HOWES PERCIVAL,BA0000306401,24.45,119523573
BEIS,The Insolvency Service,12/07/2017,Investigation and Enforcement Costs,INVESTIGATIONS & ENFORCEMENT                                                                        ,SHEPHERD & WEDDERBURN WS (ENGLISH CASES)                    ,BA0000306393,1011.01,890559386
BEIS,The Insolvency Service,12/07/2017,Investigation and Enforcement Costs,INVESTIGATIONS & ENFORCEMENT                                                                        ,SHEPHERD & WEDDERBURN WS (SCOTTISH CASES)                   ,BA0000306394,1464.75,890559386
BEIS,The Insolvency Service,12/07/2017,Investigation and Enforcement Costs,INVESTIGATIONS & ENFORCEMENT                                                                        ,SHEPHERD & WEDDERBURN WS (SCOTTISH CASES)                   ,BA0000306394,4625.12,890559386
BEIS,The Insolvency Service,12/07/2017,Investigation and Enforcement Costs,INVESTIGATIONS & ENFORCEMENT                                                                        ,SHEPHERD & WEDDERBURN WS (SCOTTISH CASES)                   ,BA0000306395,118.25,890559386
BEIS,The Insolvency Service,12/07/2017,Office Supplies and Services,OFFICIAL RECEIVER SERVICES                                                                          ,NEOPOST LIMITED,BA0000306379,129.60,597265489
BEIS,The Insolvency Service,12/07/2017,Office Supplies and Services,OFFICIAL RECEIVER SERVICES                                                                          ,Staff Payment,BA0000306409,7.75,
BEIS,The Insolvency Service,12/07/2017,Office Supplies and Services,OFFICIAL RECEIVER SERVICES                                                                          ,Staff Payment,BA0000306409,5.00,
BEIS,The Insolvency Service,12/07/2017,Office Supplies and Services,PROJECTS                                                                                            ,Staff Payment,BA0000306409,20.19,
BEIS,The Insolvency Service,12/07/2017,Office Supplies and Services,PROJECTS                                                                                            ,Staff Payment,BA0000306409,8.99,
BEIS,The Insolvency Service,12/07/2017,Telecoms,BUSINESS SERVICES DIRECTORATE                                                                       ,GAMMA BUSINESS COMMUNICATIONS LTD,BA0000306382,169.16,823820344
BEIS,The Insolvency Service,12/07/2017,Telecoms,FINANCE AND COMMERCIAL                                                                              ,GAMMA BUSINESS COMMUNICATIONS LTD,BA0000306382,653.62,823820344
BEIS,The Insolvency Service,12/07/2017,Telecoms,INFORMATION TECHNOLOGY                                                                              ,EE LTD                               ,BA0000306381,8976.15,771592016
BEIS,The Insolvency Service,12/07/2017,Telecoms,INFORMATION TECHNOLOGY                                                                              ,GAMMA BUSINESS COMMUNICATIONS LTD,BA0000306382,173.08,823820344
BEIS,The Insolvency Service,12/07/2017,Telecoms,OFFICIAL RECEIVER SERVICES                                                                          ,GAMMA BUSINESS COMMUNICATIONS LTD,BA0000306382,49.50,823820344
BEIS,The Insolvency Service,12/07/2017,Telecoms,OFFICIAL RECEIVER SERVICES                                                                          ,GAMMA BUSINESS COMMUNICATIONS LTD,BA0000306382,97.56,823820344
BEIS,The Insolvency Service,12/07/2017,Telecoms,OFFICIAL RECEIVER SERVICES                                                                          ,GAMMA BUSINESS COMMUNICATIONS LTD,BA0000306382,129.88,823820344
BEIS,The Insolvency Service,12/07/2017,Telecoms,OFFICIAL RECEIVER SERVICES                                                                          ,GAMMA BUSINESS COMMUNICATIONS LTD,BA0000306382,141.64,823820344
BEIS,The Insolvency Service,12/07/2017,Telecoms,OFFICIAL RECEIVER SERVICES                                                                          ,GAMMA BUSINESS COMMUNICATIONS LTD,BA0000306382,144.44,823820344
BEIS,The Insolvency Service,12/07/2017,Telecoms,OFFICIAL RECEIVER SERVICES                                                                          ,GAMMA BUSINESS COMMUNICATIONS LTD,BA0000306382,180.24,823820344
BEIS,The Insolvency Service,12/07/2017,Telecoms,OFFICIAL RECEIVER SERVICES                                                                          ,GAMMA BUSINESS COMMUNICATIONS LTD,BA0000306382,185.24,823820344
BEIS,The Insolvency Service,12/07/2017,Telecoms,OFFICIAL RECEIVER SERVICES                                                                          ,GAMMA BUSINESS COMMUNICATIONS LTD,BA0000306382,187.02,823820344
BEIS,The Insolvency Service,12/07/2017,Telecoms,OFFICIAL RECEIVER SERVICES                                                                          ,GAMMA BUSINESS COMMUNICATIONS LTD,BA0000306382,284.65,823820344
BEIS,The Insolvency Service,12/07/2017,Telecoms,OFFICIAL RECEIVER SERVICES                                                                          ,GAMMA BUSINESS COMMUNICATIONS LTD,BA0000306382,427.58,823820344
BEIS,The Insolvency Service,12/07/2017,Training Costs,BUSINESS SERVICES DIRECTORATE                                                                       ,KPMG LLP,BA0000306378,55.00,
BEIS,The Insolvency Service,12/07/2017,Travel and Subsistence,CRIMINAL ENFORCEMENT                                                                                ,Staff Payment,BA0000306409,3.75,                      
BEIS,The Insolvency Service,12/07/2017,Travel and Subsistence,CRIMINAL ENFORCEMENT                                                                                ,Staff Payment,BA0000306409,4.80,                      
BEIS,The Insolvency Service,12/07/2017,Travel and Subsistence,CRIMINAL ENFORCEMENT                                                                                ,Staff Payment,BA0000306409,5.00,                      
BEIS,The Insolvency Service,12/07/2017,Travel and Subsistence,CRIMINAL ENFORCEMENT                                                                                ,Staff Payment,BA0000306409,141.75,                      
BEIS,The Insolvency Service,12/07/2017,Travel and Subsistence,CRIMINAL ENFORCEMENT                                                                                ,Staff Payment,BA0000306409,5.00,                      
BEIS,The Insolvency Service,12/07/2017,Travel and Subsistence,CRIMINAL ENFORCEMENT                                                                                ,Staff Payment,BA0000306409,5.50,                      
BEIS,The Insolvency Service,12/07/2017,Travel and Subsistence,CRIMINAL ENFORCEMENT                                                                                ,Staff Payment,BA0000306409,5.90,                      
BEIS,The Insolvency Service,12/07/2017,Travel and Subsistence,CRIMINAL ENFORCEMENT                                                                                ,Staff Payment,BA0000306409,10.00,                      
BEIS,The Insolvency Service,12/07/2017,Travel and Subsistence,CRIMINAL ENFORCEMENT                                                                                ,Staff Payment,BA0000306409,12.30,                      
BEIS,The Insolvency Service,12/07/2017,Travel and Subsistence,CRIMINAL ENFORCEMENT                                                                                ,Staff Payment,BA0000306409,15.00,                      
BEIS,The Insolvency Service,12/07/2017,Travel and Subsistence,CRIMINAL ENFORCEMENT                                                                                ,Staff Payment,BA0000306409,18.00,                      
BEIS,The Insolvency Service,12/07/2017,Travel and Subsistence,CRIMINAL ENFORCEMENT                                                                                ,Staff Payment,BA0000306409,34.20,                      
BEIS,The Insolvency Service,12/07/2017,Travel and Subsistence,CRIMINAL ENFORCEMENT                                                                                ,Staff Payment,BA0000306409,63.90,                      
BEIS,The Insolvency Service,12/07/2017,Travel and Subsistence,CRIMINAL ENFORCEMENT                                                                                ,Staff Payment,BA0000306409,101.70,                      
BEIS,The Insolvency Service,12/07/2017,Travel and Subsistence,CRIMINAL ENFORCEMENT                                                                                ,Staff Payment,BA0000306409,103.50,                      
BEIS,The Insolvency Service,12/07/2017,Travel and Subsistence,CRIMINAL ENFORCEMENT                                                                                ,Staff Payment,BA0000306409,3.00,                      
BEIS,The Insolvency Service,12/07/2017,Travel and Subsistence,CRIMINAL ENFORCEMENT                                                                                ,Staff Payment,BA0000306409,5.00,                      
BEIS,The Insolvency Service,12/07/2017,Travel and Subsistence,CRIMINAL ENFORCEMENT                                                                                ,Staff Payment,BA0000306409,5.00,                      
BEIS,The Insolvency Service,12/07/2017,Travel and Subsistence,CRIMINAL ENFORCEMENT                                                                                ,Staff Payment,BA0000306409,6.00,                      
BEIS,The Insolvency Service,12/07/2017,Travel and Subsistence,CRIMINAL ENFORCEMENT                                                                                ,Staff Payment,BA0000306409,14.85,                      
BEIS,The Insolvency Service,12/07/2017,Travel and Subsistence,CRIMINAL ENFORCEMENT                                                                                ,Staff Payment,BA0000306409,54.90,                      
BEIS,The Insolvency Service,12/07/2017,Travel and Subsistence,CRIMINAL ENFORCEMENT                                                                                ,Staff Payment,BA0000306409,81.90,                      
BEIS,The Insolvency Service,12/07/2017,Travel and Subsistence,CRIMINAL ENFORCEMENT                                                                                ,Staff Payment,BA0000306409,3.00,                      
BEIS,The Insolvency Service,12/07/2017,Travel and Subsistence,CRIMINAL ENFORCEMENT                                                                                ,Staff Payment,BA0000306409,3.60,                      
BEIS,The Insolvency Service,12/07/2017,Travel and Subsistence,CRIMINAL ENFORCEMENT                                                                                ,Staff Payment,BA0000306409,6.00,                      
BEIS,The Insolvency Service,12/07/2017,Travel and Subsistence,CRIMINAL ENFORCEMENT                                                                                ,Staff Payment,BA0000306409,8.00,                      
BEIS,The Insolvency Service,12/07/2017,Travel and Subsistence,CRIMINAL ENFORCEMENT                                                                                ,Staff Payment,BA0000306409,54.90,                      
BEIS,The Insolvency Service,12/07/2017,Travel and Subsistence,CRIMINAL ENFORCEMENT                                                                                ,Staff Payment,BA0000306409,1.80,                      
BEIS,The Insolvency Service,12/07/2017,Travel and Subsistence,CRIMINAL ENFORCEMENT                                                                                ,Staff Payment,BA0000306409,5.00,                      
BEIS,The Insolvency Service,12/07/2017,Travel and Subsistence,CRIMINAL ENFORCEMENT                                                                                ,Staff Payment,BA0000306409,8.00,                      
BEIS,The Insolvency Service,12/07/2017,Travel and Subsistence,CRIMINAL ENFORCEMENT                                                                                ,Staff Payment,BA0000306409,9.60,                      
BEIS,The Insolvency Service,12/07/2017,Travel and Subsistence,CRIMINAL ENFORCEMENT                                                                                ,Staff Payment,BA0000306409,11.20,                      
BEIS,The Insolvency Service,12/07/2017,Travel and Subsistence,CRIMINAL ENFORCEMENT                                                                                ,Staff Payment,BA0000306409,16.00,                      
BEIS,The Insolvency Service,12/07/2017,Travel and Subsistence,CRIMINAL ENFORCEMENT                                                                                ,Staff Payment,BA0000306409,60.00,                      
BEIS,The Insolvency Service,12/07/2017,Travel and Subsistence,CRIMINAL ENFORCEMENT                                                                                ,Staff Payment,BA0000306409,180.00,                      
BEIS,The Insolvency Service,12/07/2017,Travel and Subsistence,INFORMATION TECHNOLOGY                                                                              ,Staff Payment,BA0000306408,2.95,                      
BEIS,The Insolvency Service,12/07/2017,Travel and Subsistence,INFORMATION TECHNOLOGY                                                                              ,Staff Payment,BA0000306408,3.00,                      
BEIS,The Insolvency Service,12/07/2017,Travel and Subsistence,INFORMATION TECHNOLOGY                                                                              ,Staff Payment,BA0000306408,3.30,                      
BEIS,The Insolvency Service,12/07/2017,Travel and Subsistence,INFORMATION TECHNOLOGY                                                                              ,Staff Payment,BA0000306408,3.50,                      
BEIS,The Insolvency Service,12/07/2017,Travel and Subsistence,INFORMATION TECHNOLOGY                                                                              ,Staff Payment,BA0000306408,3.85,                      
BEIS,The Insolvency Service,12/07/2017,Travel and Subsistence,INFORMATION TECHNOLOGY                                                                              ,Staff Payment,BA0000306408,3.89,                      
BEIS,The Insolvency Service,12/07/2017,Travel and Subsistence,INFORMATION TECHNOLOGY                                                                              ,Staff Payment,BA0000306408,4.85,                      
BEIS,The Insolvency Service,12/07/2017,Travel and Subsistence,INFORMATION TECHNOLOGY                                                                              ,Staff Payment,BA0000306408,5.00,                      
BEIS,The Insolvency Service,12/07/2017,Travel and Subsistence,INFORMATION TECHNOLOGY                                                                              ,Staff Payment,BA0000306408,7.00,                      
BEIS,The Insolvency Service,12/07/2017,Travel and Subsistence,INFORMATION TECHNOLOGY                                                                              ,Staff Payment,BA0000306408,7.27,                      
BEIS,The Insolvency Service,12/07/2017,Travel and Subsistence,INFORMATION TECHNOLOGY                                                                              ,Staff Payment,BA0000306408,7.55,                      
BEIS,The Insolvency Service,12/07/2017,Travel and Subsistence,INFORMATION TECHNOLOGY                                                                              ,Staff Payment,BA0000306408,12.45,                      
BEIS,The Insolvency Service,12/07/2017,Travel and Subsistence,INVESTIGATIONS & ENFORCEMENT                                                                        ,Staff Payment,BA0000306409,2.60,
BEIS,The Insolvency Service,12/07/2017,Travel and Subsistence,INVESTIGATIONS & ENFORCEMENT                                                                        ,Staff Payment,BA0000306409,4.20,
BEIS,The Insolvency Service,12/07/2017,Travel and Subsistence,INVESTIGATIONS & ENFORCEMENT                                                                        ,Staff Payment,BA0000306409,4.90,
BEIS,The Insolvency Service,12/07/2017,Travel and Subsistence,INVESTIGATIONS & ENFORCEMENT                                                                        ,Staff Payment,BA0000306409,5.00,
BEIS,The Insolvency Service,12/07/2017,Travel and Subsistence,OFFICIAL RECEIVER SERVICES                                                                          ,Staff Payment,BA0000306409,12.15,
BEIS,The Insolvency Service,12/07/2017,Travel and Subsistence,OFFICIAL RECEIVER SERVICES                                                                          ,Staff Payment,BA0000306409,15.00,
BEIS,The Insolvency Service,12/07/2017,Travel and Subsistence,OFFICIAL RECEIVER SERVICES                                                                          ,Staff Payment,BA0000306409,4.80,
BEIS,The Insolvency Service,12/07/2017,Travel and Subsistence,OFFICIAL RECEIVER SERVICES                                                                          ,Staff Payment,BA0000306409,9.60,
BEIS,The Insolvency Service,12/07/2017,Travel and Subsistence,OFFICIAL RECEIVER SERVICES                                                                          ,Staff Payment,BA0000306409,12.00,
BEIS,The Insolvency Service,12/07/2017,Travel and Subsistence,OFFICIAL RECEIVER SERVICES                                                                          ,Staff Payment,BA0000306409,14.40,
BEIS,The Insolvency Service,12/07/2017,Travel and Subsistence,OFFICIAL RECEIVER SERVICES                                                                          ,Staff Payment,BA0000306409,5.80,
BEIS,The Insolvency Service,12/07/2017,Travel and Subsistence,OFFICIAL RECEIVER SERVICES                                                                          ,Staff Payment,BA0000306409,2.80,
BEIS,The Insolvency Service,12/07/2017,Travel and Subsistence,OFFICIAL RECEIVER SERVICES                                                                          ,Staff Payment,BA0000306409,4.76,
BEIS,The Insolvency Service,12/07/2017,Travel and Subsistence,OFFICIAL RECEIVER SERVICES                                                                          ,Staff Payment,BA0000306409,5.00,
BEIS,The Insolvency Service,12/07/2017,Travel and Subsistence,OFFICIAL RECEIVER SERVICES                                                                          ,Staff Payment,BA0000306409,14.60,
BEIS,The Insolvency Service,12/07/2017,Travel and Subsistence,OFFICIAL RECEIVER SERVICES                                                                          ,Staff Payment,BA0000306409,15.00,
BEIS,The Insolvency Service,12/07/2017,Travel and Subsistence,OFFICIAL RECEIVER SERVICES                                                                          ,Staff Payment,BA0000306409,2.90,
BEIS,The Insolvency Service,12/07/2017,Travel and Subsistence,OFFICIAL RECEIVER SERVICES                                                                          ,Staff Payment,BA0000306409,3.00,
BEIS,The Insolvency Service,12/07/2017,Travel and Subsistence,OFFICIAL RECEIVER SERVICES                                                                          ,Staff Payment,BA0000306409,9.00,
BEIS,The Insolvency Service,12/07/2017,Travel and Subsistence,OFFICIAL RECEIVER SERVICES                                                                          ,Staff Payment,BA0000306409,27.45,
BEIS,The Insolvency Service,12/07/2017,Travel and Subsistence,OFFICIAL RECEIVER SERVICES                                                                          ,Staff Payment,BA0000306409,7.20,
BEIS,The Insolvency Service,12/07/2017,Travel and Subsistence,OFFICIAL RECEIVER SERVICES                                                                          ,Staff Payment,BA0000306409,3.00,
BEIS,The Insolvency Service,12/07/2017,Travel and Subsistence,PEOPLE & CAPABILITY                                                                                 ,Staff Payment,BA0000306409,18.00,
BEIS,The Insolvency Service,12/07/2017,Travel and Subsistence,PEOPLE & CAPABILITY                                                                                 ,Staff Payment,BA0000306409,2.60,
BEIS,The Insolvency Service,12/07/2017,Travel and Subsistence,PEOPLE & CAPABILITY                                                                                 ,Staff Payment,BA0000306409,3.05,
BEIS,The Insolvency Service,12/07/2017,Travel and Subsistence,PEOPLE & CAPABILITY                                                                                 ,Staff Payment,BA0000306409,3.50,
BEIS,The Insolvency Service,12/07/2017,Travel and Subsistence,PEOPLE & CAPABILITY                                                                                 ,Staff Payment,BA0000306409,5.00,
BEIS,The Insolvency Service,12/07/2017,Travel and Subsistence,PEOPLE & CAPABILITY                                                                                 ,Staff Payment,BA0000306409,10.39,
BEIS,The Insolvency Service,12/07/2017,Travel and Subsistence,PEOPLE & CAPABILITY                                                                                 ,Staff Payment,BA0000306409,15.00,
BEIS,The Insolvency Service,12/07/2017,Travel and Subsistence,PROJECTS                                                                                            ,Staff Payment,BA0000306409,9.80,
BEIS,The Insolvency Service,12/07/2017,Travel and Subsistence,PROJECTS                                                                                            ,Staff Payment,BA0000306409,10.30,
BEIS,The Insolvency Service,12/07/2017,Travel and Subsistence,PROJECTS                                                                                            ,Staff Payment,BA0000306409,11.85,
BEIS,The Insolvency Service,12/07/2017,Travel and Subsistence,PROJECTS                                                                                            ,Staff Payment,BA0000306409,12.55,
BEIS,The Insolvency Service,12/07/2017,Travel and Subsistence,PROJECTS                                                                                            ,Staff Payment,BA0000306409,4.31,
BEIS,The Insolvency Service,12/07/2017,Travel and Subsistence,PROJECTS                                                                                            ,Staff Payment,BA0000306409,4.85,
BEIS,The Insolvency Service,12/07/2017,Travel and Subsistence,PROJECTS                                                                                            ,Staff Payment,BA0000306409,5.00,
BEIS,The Insolvency Service,12/07/2017,Travel and Subsistence,PROJECTS                                                                                            ,Staff Payment,BA0000306409,7.96,
BEIS,The Insolvency Service,12/07/2017,Travel and Subsistence,PROJECTS                                                                                            ,Staff Payment,BA0000306409,15.00,
BEIS,The Insolvency Service,13/07/2017,Accommodation,BUSINESS SERVICES DIRECTORATE                                                                       ,IRON MOUNTAIN (UK) LTD,BA0000306415,1665.02,607937516
BEIS,The Insolvency Service,13/07/2017,Accommodation,CUSTOMER AND COMMUNICATIONS                                                                         ,IRON MOUNTAIN (UK) LTD,BA0000306415,1.26,607937516
BEIS,The Insolvency Service,13/07/2017,Accommodation,ESTATES,ACENES HOUSE LTD                                            ,BA0000306419,2800.00,182696958
BEIS,The Insolvency Service,13/07/2017,Accommodation,ESTATES,ACENES HOUSE LTD                                            ,BA0000306419,10500.00,182696958
BEIS,The Insolvency Service,13/07/2017,Accommodation,ESTATES,CBRE LIMITED,BA0000306425,1816.92,
BEIS,The Insolvency Service,13/07/2017,Accommodation,ESTATES,CBRE LIMITED,BA0000306428,2030.08,
BEIS,The Insolvency Service,13/07/2017,Accommodation,ESTATES,CBRE Ltd,BA0000306426,804.66,
BEIS,The Insolvency Service,13/07/2017,Accommodation,ESTATES,E.ON,BA0000306422,749.86,559097889
BEIS,The Insolvency Service,13/07/2017,Accommodation,ESTATES,GVA                                                         ,BA0000306420,469.68,657719590
BEIS,The Insolvency Service,13/07/2017,Accommodation,ESTATES,MIDDLESBROUGH COUNCIL                                       ,BA0000306421,344.70,734213854
BEIS,The Insolvency Service,13/07/2017,Accommodation,ESTATES,PLYMOUTH CITY COUNCIL                                       ,BA0000306430,7243.75,                      
BEIS,The Insolvency Service,13/07/2017,Accommodation,EXTERNAL AFFAIRS                                                                                    ,IRON MOUNTAIN (UK) LTD,BA0000306415,35.56,607937516
BEIS,The Insolvency Service,13/07/2017,Accommodation,EXTERNAL AFFAIRS                                                                                    ,IRON MOUNTAIN (UK) LTD,BA0000306415,120.97,607937516
BEIS,The Insolvency Service,13/07/2017,Accommodation,INFORMATION TECHNOLOGY                                                                              ,IRON MOUNTAIN (UK) LTD,BA0000306415,261.12,607937516
BEIS,The Insolvency Service,13/07/2017,Accommodation,INVESTIGATIONS & ENFORCEMENT                                                                        ,IRON MOUNTAIN (UK) LTD,BA0000306415,2430.01,607937516
BEIS,The Insolvency Service,13/07/2017,Accommodation,OFFICIAL RECEIVER SERVICES                                                                          ,IRON MOUNTAIN (UK) LTD,BA0000306415,55.48,607937516
BEIS,The Insolvency Service,13/07/2017,Accommodation,OFFICIAL RECEIVER SERVICES                                                                          ,IRON MOUNTAIN (UK) LTD,BA0000306415,17341.99,607937516
BEIS,The Insolvency Service,13/07/2017,Accommodation,P&C - People Relations                                                                              ,IRON MOUNTAIN (UK) LTD,BA0000306415,18.51,607937516
BEIS,The Insolvency Service,13/07/2017,Accommodation,PEOPLE & CAPABILITY                                                                                 ,IRON MOUNTAIN (UK) LTD,BA0000306415,46.88,607937516
BEIS,The Insolvency Service,13/07/2017,Insolvency Case Related Costs,OFFICIAL RECEIVER SERVICES                                                                          ,COMPANIES HOUSE,BA0000306427,4.00,GD255
BEIS,The Insolvency Service,13/07/2017,Insolvency Case Related Costs,OFFICIAL RECEIVER SERVICES                                                                          ,COMPANIES HOUSE,BA0000306423,4.00,GD255
BEIS,The Insolvency Service,13/07/2017,Postage,BUSINESS SERVICES DIRECTORATE                                                                       ,NEOPOST LIMITED,BA0000306416,1000.00,
BEIS,The Insolvency Service,13/07/2017,Postage,ESTATES,PARCELFORCE WORLDWIDE,BA0000306414,5.99,243170002
BEIS,The Insolvency Service,13/07/2017,Postage,OFFICIAL RECEIVER SERVICES                                                                          ,NEOPOST LIMITED,BA0000306416,100.00,
BEIS,The Insolvency Service,13/07/2017,Postage,OFFICIAL RECEIVER SERVICES                                                                          ,NEOPOST LIMITED,BA0000306416,200.00,
BEIS,The Insolvency Service,13/07/2017,Postage,OFFICIAL RECEIVER SERVICES                                                                          ,NEOPOST LIMITED,BA0000306416,500.00,
BEIS,The Insolvency Service,13/07/2017,Postage,OFFICIAL RECEIVER SERVICES                                                                          ,NEOPOST LIMITED,BA0000306416,500.00,
BEIS,The Insolvency Service,13/07/2017,Postage,OFFICIAL RECEIVER SERVICES                                                                          ,NEOPOST LIMITED,BA0000306416,600.00,
BEIS,The Insolvency Service,13/07/2017,Postage,OFFICIAL RECEIVER SERVICES                                                                          ,PARCELFORCE WORLDWIDE,BA0000306414,24.09,243170002
BEIS,The Insolvency Service,13/07/2017,Postage,OFFICIAL RECEIVER SERVICES                                                                          ,PARCELFORCE WORLDWIDE,BA0000306414,27.71,243170002
BEIS,The Insolvency Service,13/07/2017,Postage,OFFICIAL RECEIVER SERVICES                                                                          ,PARCELFORCE WORLDWIDE,BA0000306414,29.95,243170002
BEIS,The Insolvency Service,13/07/2017,Postage,OFFICIAL RECEIVER SERVICES                                                                          ,PARCELFORCE WORLDWIDE,BA0000306414,62.82,243170002
BEIS,The Insolvency Service,13/07/2017,Postage,OFFICIAL RECEIVER SERVICES                                                                          ,PARCELFORCE WORLDWIDE,BA0000306414,64.11,243170002
BEIS,The Insolvency Service,13/07/2017,Postage,OFFICIAL RECEIVER SERVICES                                                                          ,PARCELFORCE WORLDWIDE,BA0000306414,128.21,243170002
BEIS,The Insolvency Service,13/07/2017,Telecoms,BUSINESS SERVICES DIRECTORATE                                                                       ,BT CONFERENCING SERVICES,BA0000306418,1.20, 245 7193 48 000
BEIS,The Insolvency Service,13/07/2017,Telecoms,BUSINESS SERVICES DIRECTORATE                                                                       ,BT CONFERENCING SERVICES,BA0000306418,2.28, 245 7193 48 000
BEIS,The Insolvency Service,13/07/2017,Telecoms,BUSINESS SERVICES DIRECTORATE                                                                       ,BT CONFERENCING SERVICES,BA0000306418,13.24, 245 7193 48 000
BEIS,The Insolvency Service,13/07/2017,Telecoms,BUSINESS SERVICES DIRECTORATE                                                                       ,BT CONFERENCING SERVICES,BA0000306418,25.96, 245 7193 48 000
BEIS,The Insolvency Service,13/07/2017,Telecoms,BUSINESS SERVICES DIRECTORATE                                                                       ,BT CONFERENCING SERVICES,BA0000306418,32.26, 245 7193 48 000
BEIS,The Insolvency Service,13/07/2017,Telecoms,BUSINESS SERVICES DIRECTORATE                                                                       ,TIMICO LIMITED                                              ,BA0000306429,2131.80,852368804
BEIS,The Insolvency Service,13/07/2017,Telecoms,CHIEF EXECUTIVE DIVISION                                                                            ,BT CONFERENCING SERVICES,BA0000306418,20.75, 245 7193 48 000
BEIS,The Insolvency Service,13/07/2017,Telecoms,CUSTOMER AND COMMUNICATIONS                                                                         ,BT CONFERENCING SERVICES,BA0000306418,57.65, 245 7193 48 000
BEIS,The Insolvency Service,13/07/2017,Telecoms,CUSTOMER AND COMMUNICATIONS                                                                         ,BT CONFERENCING SERVICES,BA0000306418,71.02, 245 7193 48 000
BEIS,The Insolvency Service,13/07/2017,Telecoms,ESTATES,BT CONFERENCING SERVICES,BA0000306418,1.61, 245 7193 48 000
BEIS,The Insolvency Service,13/07/2017,Telecoms,EXTERNAL AFFAIRS                                                                                    ,BT CONFERENCING SERVICES,BA0000306418,3.18, 245 7193 48 000
BEIS,The Insolvency Service,13/07/2017,Telecoms,EXTERNAL AFFAIRS                                                                                    ,BT CONFERENCING SERVICES,BA0000306418,8.80, 245 7193 48 000
BEIS,The Insolvency Service,13/07/2017,Telecoms,EXTERNAL AFFAIRS                                                                                    ,BT CONFERENCING SERVICES,BA0000306418,26.09, 245 7193 48 000
BEIS,The Insolvency Service,13/07/2017,Telecoms,EXTERNAL AFFAIRS                                                                                    ,BT CONFERENCING SERVICES,BA0000306418,36.90, 245 7193 48 000
BEIS,The Insolvency Service,13/07/2017,Telecoms,FINANCE AND COMMERCIAL,BT CONFERENCING SERVICES,BA0000306418,0.02, 245 7193 48 000
BEIS,The Insolvency Service,13/07/2017,Telecoms,FINANCE AND COMMERCIAL                                                                              ,BT CONFERENCING SERVICES,BA0000306418,1.57, 245 7193 48 000
BEIS,The Insolvency Service,13/07/2017,Telecoms,FINANCE AND COMMERCIAL,BT CONFERENCING SERVICES,BA0000306418,1.60, 245 7193 48 000
BEIS,The Insolvency Service,13/07/2017,Telecoms,FINANCE AND COMMERCIAL                                                                              ,BT CONFERENCING SERVICES,BA0000306418,5.02, 245 7193 48 000
BEIS,The Insolvency Service,13/07/2017,Telecoms,FINANCE AND COMMERCIAL,BT CONFERENCING SERVICES,BA0000306418,8.58, 245 7193 48 000
BEIS,The Insolvency Service,13/07/2017,Telecoms,FINANCE AND COMMERCIAL                                                                              ,BT CONFERENCING SERVICES,BA0000306418,17.30, 245 7193 48 000
BEIS,The Insolvency Service,13/07/2017,Telecoms,FINANCE AND COMMERCIAL                                                                              ,BT CONFERENCING SERVICES,BA0000306418,36.86, 245 7193 48 000
BEIS,The Insolvency Service,13/07/2017,Telecoms,FINANCE AND COMMERCIAL                                                                              ,BT CONFERENCING SERVICES,BA0000306418,40.16, 245 7193 48 000
BEIS,The Insolvency Service,13/07/2017,Telecoms,FINANCE AND COMMERCIAL                                                                              ,BT CONFERENCING SERVICES,BA0000306418,42.96, 245 7193 48 000
BEIS,The Insolvency Service,13/07/2017,Telecoms,FINANCE AND COMMERCIAL                                                                              ,BT CONFERENCING SERVICES,BA0000306418,45.94, 245 7193 48 000
BEIS,The Insolvency Service,13/07/2017,Telecoms,FINANCE AND COMMERCIAL                                                                              ,BT CONFERENCING SERVICES,BA0000306418,114.54, 245 7193 48 000
BEIS,The Insolvency Service,13/07/2017,Telecoms,INFORMATION TECHNOLOGY                                                                              ,BT CONFERENCING SERVICES,BA0000306418,3.20, 245 7193 48 000
BEIS,The Insolvency Service,13/07/2017,Telecoms,INFORMATION TECHNOLOGY                                                                              ,BT CONFERENCING SERVICES,BA0000306418,77.02, 245 7193 48 000
BEIS,The Insolvency Service,13/07/2017,Telecoms,INFORMATION TECHNOLOGY                                                                              ,BT CONFERENCING SERVICES,BA0000306418,153.64, 245 7193 48 000
BEIS,The Insolvency Service,13/07/2017,Telecoms,INFORMATION TECHNOLOGY                                                                              ,BT CONFERENCING SERVICES,BA0000306418,287.66, 245 7193 48 000
BEIS,The Insolvency Service,13/07/2017,Telecoms,INVESTIGATIONS & ENFORCEMENT                                                                        ,BT CONFERENCING SERVICES,BA0000306418,1.56, 245 7193 48 000
BEIS,The Insolvency Service,13/07/2017,Telecoms,INVESTIGATIONS & ENFORCEMENT                                                                        ,BT CONFERENCING SERVICES,BA0000306418,2.11, 245 7193 48 000
BEIS,The Insolvency Service,13/07/2017,Telecoms,INVESTIGATIONS & ENFORCEMENT                                                                        ,BT CONFERENCING SERVICES,BA0000306418,2.69, 245 7193 48 000
BEIS,The Insolvency Service,13/07/2017,Telecoms,INVESTIGATIONS & ENFORCEMENT                                                                        ,BT CONFERENCING SERVICES,BA0000306418,4.64, 245 7193 48 000
BEIS,The Insolvency Service,13/07/2017,Telecoms,INVESTIGATIONS & ENFORCEMENT                                                                        ,BT CONFERENCING SERVICES,BA0000306418,14.15, 245 7193 48 000
BEIS,The Insolvency Service,13/07/2017,Telecoms,INVESTIGATIONS & ENFORCEMENT                                                                        ,BT CONFERENCING SERVICES,BA0000306418,27.49, 245 7193 48 000
BEIS,The Insolvency Service,13/07/2017,Telecoms,INVESTIGATIONS & ENFORCEMENT                                                                        ,BT CONFERENCING SERVICES,BA0000306418,56.09, 245 7193 48 000
BEIS,The Insolvency Service,13/07/2017,Telecoms,INVESTIGATIONS & ENFORCEMENT                                                                        ,BT CONFERENCING SERVICES,BA0000306418,58.72, 245 7193 48 000
BEIS,The Insolvency Service,13/07/2017,Telecoms,INVESTIGATIONS & ENFORCEMENT                                                                        ,BT CONFERENCING SERVICES,BA0000306418,65.64, 245 7193 48 000
BEIS,The Insolvency Service,13/07/2017,Telecoms,INVESTIGATIONS & ENFORCEMENT                                                                        ,BT CONFERENCING SERVICES,BA0000306418,86.16, 245 7193 48 000
BEIS,The Insolvency Service,13/07/2017,Telecoms,OFFICIAL RECEIVER SERVICES                                                                          ,BT CONFERENCING SERVICES,BA0000306418,0.34, 245 7193 48 000
BEIS,The Insolvency Service,13/07/2017,Telecoms,OFFICIAL RECEIVER SERVICES                                                                          ,BT CONFERENCING SERVICES,BA0000306418,1.99, 245 7193 48 000
BEIS,The Insolvency Service,13/07/2017,Telecoms,OFFICIAL RECEIVER SERVICES                                                                          ,BT CONFERENCING SERVICES,BA0000306418,3.00, 245 7193 48 000
BEIS,The Insolvency Service,13/07/2017,Telecoms,OFFICIAL RECEIVER SERVICES                                                                          ,BT CONFERENCING SERVICES,BA0000306418,4.20, 245 7193 48 000
BEIS,The Insolvency Service,13/07/2017,Telecoms,OFFICIAL RECEIVER SERVICES                                                                          ,BT CONFERENCING SERVICES,BA0000306418,5.28, 245 7193 48 000
BEIS,The Insolvency Service,13/07/2017,Telecoms,OFFICIAL RECEIVER SERVICES                                                                          ,BT CONFERENCING SERVICES,BA0000306418,13.96, 245 7193 48 000
BEIS,The Insolvency Service,13/07/2017,Telecoms,OFFICIAL RECEIVER SERVICES                                                                          ,BT CONFERENCING SERVICES,BA0000306418,13.97, 245 7193 48 000
BEIS,The Insolvency Service,13/07/2017,Telecoms,OFFICIAL RECEIVER SERVICES                                                                          ,BT CONFERENCING SERVICES,BA0000306418,14.89, 245 7193 48 000
BEIS,The Insolvency Service,13/07/2017,Telecoms,OFFICIAL RECEIVER SERVICES                                                                          ,BT CONFERENCING SERVICES,BA0000306418,16.30, 245 7193 48 000
BEIS,The Insolvency Service,13/07/2017,Telecoms,OFFICIAL RECEIVER SERVICES                                                                          ,BT CONFERENCING SERVICES,BA0000306418,18.00, 245 7193 48 000
BEIS,The Insolvency Service,13/07/2017,Telecoms,OFFICIAL RECEIVER SERVICES                                                                          ,BT CONFERENCING SERVICES,BA0000306418,23.21, 245 7193 48 000
BEIS,The Insolvency Service,13/07/2017,Telecoms,OFFICIAL RECEIVER SERVICES                                                                          ,BT CONFERENCING SERVICES,BA0000306418,23.26, 245 7193 48 000
BEIS,The Insolvency Service,13/07/2017,Telecoms,OFFICIAL RECEIVER SERVICES                                                                          ,BT CONFERENCING SERVICES,BA0000306418,24.35, 245 7193 48 000
BEIS,The Insolvency Service,13/07/2017,Telecoms,OFFICIAL RECEIVER SERVICES                                                                          ,BT CONFERENCING SERVICES,BA0000306418,32.10, 245 7193 48 000
BEIS,The Insolvency Service,13/07/2017,Telecoms,OFFICIAL RECEIVER SERVICES                                                                          ,BT CONFERENCING SERVICES,BA0000306418,33.64, 245 7193 48 000
BEIS,The Insolvency Service,13/07/2017,Telecoms,OFFICIAL RECEIVER SERVICES                                                                          ,BT CONFERENCING SERVICES,BA0000306418,33.84, 245 7193 48 000
BEIS,The Insolvency Service,13/07/2017,Telecoms,OFFICIAL RECEIVER SERVICES                                                                          ,BT CONFERENCING SERVICES,BA0000306418,37.08, 245 7193 48 000
BEIS,The Insolvency Service,13/07/2017,Telecoms,OFFICIAL RECEIVER SERVICES                                                                          ,BT CONFERENCING SERVICES,BA0000306418,43.91, 245 7193 48 000
BEIS,The Insolvency Service,13/07/2017,Telecoms,OFFICIAL RECEIVER SERVICES                                                                          ,BT CONFERENCING SERVICES,BA0000306418,65.41, 245 7193 48 000
BEIS,The Insolvency Service,13/07/2017,Telecoms,OFFICIAL RECEIVER SERVICES                                                                          ,BT CONFERENCING SERVICES,BA0000306418,81.37, 245 7193 48 000
BEIS,The Insolvency Service,13/07/2017,Telecoms,P&C - People Relations                                                                              ,BT CONFERENCING SERVICES,BA0000306418,59.68, 245 7193 48 000
BEIS,The Insolvency Service,13/07/2017,Telecoms,P&C - Talent                                                                                        ,BT CONFERENCING SERVICES,BA0000306418,3.49, 245 7193 48 000
BEIS,The Insolvency Service,13/07/2017,Telecoms,PEOPLE & CAPABILITY                                                                                 ,BT CONFERENCING SERVICES,BA0000306418,10.91, 245 7193 48 000
BEIS,The Insolvency Service,13/07/2017,Telecoms,PEOPLE & CAPABILITY                                                                                 ,BT CONFERENCING SERVICES,BA0000306418,14.41, 245 7193 48 000
BEIS,The Insolvency Service,13/07/2017,Telecoms,PEOPLE & CAPABILITY                                                                                 ,BT CONFERENCING SERVICES,BA0000306418,78.20, 245 7193 48 000
BEIS,The Insolvency Service,13/07/2017,Telecoms,PROJECTS                                                                                            ,BT CONFERENCING SERVICES,BA0000306418,1.45, 245 7193 48 000
BEIS,The Insolvency Service,13/07/2017,Telecoms,STRATEGY                                                                                            ,BT CONFERENCING SERVICES,BA0000306418,6.20, 245 7193 48 000
BEIS,The Insolvency Service,14/07/2017,Accommodation,ESTATES,BEIS,BA0000306458,57324.85, 888 8255 50
BEIS,The Insolvency Service,14/07/2017,Accommodation,ESTATES,BEIS,BA0000306459,58357.55, 888 8255 50
BEIS,The Insolvency Service,14/07/2017,Accommodation,ESTATES,EDF ENERGY,BA0000306411,759.12,523041202
BEIS,The Insolvency Service,14/07/2017,Accommodation,ESTATES,JONES LANG LASALLE,BA0000306445,7020.00, 245 894 718
BEIS,The Insolvency Service,14/07/2017,Accommodation,ESTATES,PLYMOUTH CITY COUNCIL                                       ,BA0000306444,3286.38,                      
BEIS,The Insolvency Service,14/07/2017,Accommodation,ESTATES,PLYMOUTH CITY COUNCIL                                       ,BA0000306456,15281.24,                      
BEIS,The Insolvency Service,14/07/2017,Accommodation,ESTATES,PLYMOUTH CITY COUNCIL                                       ,BA0000306457,6790.63,                      
BEIS,The Insolvency Service,14/07/2017,Agency Workers,FINANCE AND COMMERCIAL,BROOK STREET (UK) LTD,BA0000306433,29186.02,
BEIS,The Insolvency Service,14/07/2017,Agency Workers,INFORMATION TECHNOLOGY                                                                              ,CONCEPT INFORMATION TECHNOLOGY LTD                          ,BA0000306434,2550.00,776147892
BEIS,The Insolvency Service,14/07/2017,Agency Workers,INFORMATION TECHNOLOGY                                                                              ,CONCEPT INFORMATION TECHNOLOGY LTD                          ,BA0000306435,2550.00,776147892
BEIS,The Insolvency Service,14/07/2017,Agency Workers,INFORMATION TECHNOLOGY                                                                              ,CONCEPT INFORMATION TECHNOLOGY LTD                          ,BA0000306436,1875.00,776147892
BEIS,The Insolvency Service,14/07/2017,Computer and IT Systems,INFORMATION TECHNOLOGY                                                                              ,ATOS IT SERVICES UK LTD,BA0000306432,8375.22,
BEIS,The Insolvency Service,14/07/2017,Employee Related Costs,BUSINESS SERVICES DIRECTORATE                                                                       ,Staff Payment,BA0000306466,315.00,
BEIS,The Insolvency Service,14/07/2017,Employee Related Costs,OFFICIAL RECEIVER SERVICES                                                                          ,Staff Payment,BA0000306465,4.25,
BEIS,The Insolvency Service,14/07/2017,Employee Related Costs,P&C - People Relations                                                                              ,Staff Payment,BA0000306465,153.00,
BEIS,The Insolvency Service,14/07/2017,Insolvency Case Related Costs,FINANCE AND COMMERCIAL                                                                              ,EQUIFAX LTD                                                 ,BA0000306442,234.00,                      
BEIS,The Insolvency Service,14/07/2017,Insolvency Case Related Costs,FINANCE AND COMMERCIAL                                                                              ,EQUIFAX LTD                                                 ,BA0000306461,16500.00,                      
BEIS,The Insolvency Service,14/07/2017,Insolvency Case Related Costs,FINANCE AND COMMERCIAL                                                                              ,SIRS (EUROPE) LTD,BA0000306447,25450.00, 990 8349 74
BEIS,The Insolvency Service,14/07/2017,Insolvency Case Related Costs,FINANCE AND COMMERCIAL                                                                              ,THE SURVEILLANCE GROUP LTD                                  ,BA0000306448,2856.60,918530324
BEIS,The Insolvency Service,14/07/2017,Insolvency Case Related Costs,OFFICIAL RECEIVER SERVICES                                                                          ,COMPANIES HOUSE,BA0000306437,4.00,GD255
BEIS,The Insolvency Service,14/07/2017,Office Supplies and Services,BUSINESS SERVICES DIRECTORATE                                                                       ,Staff Payment,BA0000306466,20.40,
BEIS,The Insolvency Service,14/07/2017,Office Supplies and Services,BUSINESS SERVICES DIRECTORATE                                                                       ,Staff Payment,BA0000306465,29.29,
BEIS,The Insolvency Service,14/07/2017,Office Supplies and Services,BUSINESS SERVICES DIRECTORATE                                                                       ,Staff Payment,BA0000306465,55.00,
BEIS,The Insolvency Service,14/07/2017,Office Supplies and Services,CRIMINAL ENFORCEMENT                                                                                ,Staff Payment,BA0000306465,6.50,                      
BEIS,The Insolvency Service,14/07/2017,Office Supplies and Services,CRIMINAL ENFORCEMENT                                                                                ,Staff Payment,BA0000306465,10.20,                      
BEIS,The Insolvency Service,14/07/2017,Office Supplies and Services,CRIMINAL ENFORCEMENT                                                                                ,Staff Payment,BA0000306466,1.75,                      
BEIS,The Insolvency Service,14/07/2017,Office Supplies and Services,CRIMINAL ENFORCEMENT                                                                                ,Staff Payment,BA0000306466,5.00,                      
BEIS,The Insolvency Service,14/07/2017,Office Supplies and Services,OFFICIAL RECEIVER SERVICES                                                                          ,Staff Payment,BA0000306466,5.00,
BEIS,The Insolvency Service,14/07/2017,Postage,FINANCE AND COMMERCIAL                                                                              ,ROYAL MAIL GROUP LTD                   ,BA0000306440,76.26,243170002
BEIS,The Insolvency Service,14/07/2017,Postage,FINANCE AND COMMERCIAL                                                                              ,ROYAL MAIL GROUP LTD                   ,BA0000306441,63.37,243170002
BEIS,The Insolvency Service,14/07/2017,Training Costs,STRATEGY                                                                                            ,KPMG LLP                                                    ,BA0000306449,55.00,                      
BEIS,The Insolvency Service,14/07/2017,Training Costs,STRATEGY                                                                                            ,KPMG LLP                                                    ,BA0000306450,55.00,                      
BEIS,The Insolvency Service,14/07/2017,Training Costs,STRATEGY                                                                                            ,KPMG LLP                                                    ,BA0000306451,55.00,                      
BEIS,The Insolvency Service,14/07/2017,Training Costs,STRATEGY                                                                                            ,KPMG LLP                                                    ,BA0000306452,55.00,                      
BEIS,The Insolvency Service,14/07/2017,Training Costs,STRATEGY                                                                                            ,KPMG LLP                                                    ,BA0000306453,55.00,                      
BEIS,The Insolvency Service,14/07/2017,Training Costs,STRATEGY                                                                                            ,KPMG LLP                                                    ,BA0000306454,55.00,                      
BEIS,The Insolvency Service,14/07/2017,Training Costs,STRATEGY                                                                                            ,KPMG LLP                                                    ,BA0000306455,55.00,                      
BEIS,The Insolvency Service,14/07/2017,Training Costs,STRATEGY                                                                                            ,KPMG LLP                                                    ,BA0000306463,55.00,                      
BEIS,The Insolvency Service,14/07/2017,Translation Costs,FINANCE AND COMMERCIAL                                                                              ,K INTERNATIONAL PLC,BA0000306438,162.96,600413800
BEIS,The Insolvency Service,14/07/2017,Travel and Subsistence,CRIMINAL ENFORCEMENT                                                                                ,Staff Payment,BA0000306465,5.00,                      
BEIS,The Insolvency Service,14/07/2017,Travel and Subsistence,CRIMINAL ENFORCEMENT                                                                                ,Staff Payment,BA0000306465,7.50,                      
BEIS,The Insolvency Service,14/07/2017,Travel and Subsistence,CRIMINAL ENFORCEMENT                                                                                ,Staff Payment,BA0000306465,9.90,                      
BEIS,The Insolvency Service,14/07/2017,Travel and Subsistence,CRIMINAL ENFORCEMENT                                                                                ,Staff Payment,BA0000306465,15.00,                      
BEIS,The Insolvency Service,14/07/2017,Travel and Subsistence,CRIMINAL ENFORCEMENT                                                                                ,Staff Payment,BA0000306465,4.30,                      
BEIS,The Insolvency Service,14/07/2017,Travel and Subsistence,CRIMINAL ENFORCEMENT                                                                                ,Staff Payment,BA0000306465,5.00,                      
BEIS,The Insolvency Service,14/07/2017,Travel and Subsistence,CRIMINAL ENFORCEMENT                                                                                ,Staff Payment,BA0000306465,15.00,                      
BEIS,The Insolvency Service,14/07/2017,Travel and Subsistence,BUSINESS SERVICES DIRECTORATE                                                                       ,Staff Payment,BA0000306466,2.30,
BEIS,The Insolvency Service,14/07/2017,Travel and Subsistence,BUSINESS SERVICES DIRECTORATE                                                                       ,Staff Payment,BA0000306466,3.00,
BEIS,The Insolvency Service,14/07/2017,Travel and Subsistence,BUSINESS SERVICES DIRECTORATE                                                                       ,Staff Payment,BA0000306466,1.00,
BEIS,The Insolvency Service,14/07/2017,Travel and Subsistence,BUSINESS SERVICES DIRECTORATE                                                                       ,Staff Payment,BA0000306466,4.00,
BEIS,The Insolvency Service,14/07/2017,Travel and Subsistence,BUSINESS SERVICES DIRECTORATE                                                                       ,Staff Payment,BA0000306466,3.60,
BEIS,The Insolvency Service,14/07/2017,Travel and Subsistence,BUSINESS SERVICES DIRECTORATE                                                                       ,Staff Payment,BA0000306466,3.24,
BEIS,The Insolvency Service,14/07/2017,Travel and Subsistence,BUSINESS SERVICES DIRECTORATE                                                                       ,Staff Payment,BA0000306466,5.00,
BEIS,The Insolvency Service,14/07/2017,Travel and Subsistence,BUSINESS SERVICES DIRECTORATE                                                                       ,Staff Payment,BA0000306466,5.50,
BEIS,The Insolvency Service,14/07/2017,Travel and Subsistence,BUSINESS SERVICES DIRECTORATE                                                                       ,Staff Payment,BA0000306466,7.90,
BEIS,The Insolvency Service,14/07/2017,Travel and Subsistence,BUSINESS SERVICES DIRECTORATE                                                                       ,Staff Payment,BA0000306466,8.00,
BEIS,The Insolvency Service,14/07/2017,Travel and Subsistence,BUSINESS SERVICES DIRECTORATE                                                                       ,Staff Payment,BA0000306466,11.80,
BEIS,The Insolvency Service,14/07/2017,Travel and Subsistence,BUSINESS SERVICES DIRECTORATE                                                                       ,Staff Payment,BA0000306466,5.00,
BEIS,The Insolvency Service,14/07/2017,Travel and Subsistence,BUSINESS SERVICES DIRECTORATE                                                                       ,Staff Payment,BA0000306466,1.35,
BEIS,The Insolvency Service,14/07/2017,Travel and Subsistence,BUSINESS SERVICES DIRECTORATE                                                                       ,Staff Payment,BA0000306466,7.50,
BEIS,The Insolvency Service,14/07/2017,Travel and Subsistence,BUSINESS SERVICES DIRECTORATE                                                                       ,Staff Payment,BA0000306466,2.80,
BEIS,The Insolvency Service,14/07/2017,Travel and Subsistence,BUSINESS SERVICES DIRECTORATE                                                                       ,Staff Payment,BA0000306466,12.00,
BEIS,The Insolvency Service,14/07/2017,Travel and Subsistence,CHIEF EXECUTIVE DIVISION                                                                            ,Staff Payment,BA0000306465,2.40,
BEIS,The Insolvency Service,14/07/2017,Travel and Subsistence,CHIEF EXECUTIVE DIVISION                                                                            ,Staff Payment,BA0000306465,3.60,
BEIS,The Insolvency Service,14/07/2017,Travel and Subsistence,CHIEF EXECUTIVE DIVISION                                                                            ,Staff Payment,BA0000306465,5.00,
BEIS,The Insolvency Service,14/07/2017,Travel and Subsistence,CHIEF EXECUTIVE DIVISION                                                                            ,Staff Payment,BA0000306465,15.00,
BEIS,The Insolvency Service,14/07/2017,Travel and Subsistence,CHIEF EXECUTIVE DIVISION                                                                            ,Staff Payment,BA0000306466,2.40,
BEIS,The Insolvency Service,14/07/2017,Travel and Subsistence,CHIEF EXECUTIVE DIVISION                                                                            ,Staff Payment,BA0000306466,4.00,
BEIS,The Insolvency Service,14/07/2017,Travel and Subsistence,CHIEF EXECUTIVE DIVISION                                                                            ,Staff Payment,BA0000306466,4.94,
BEIS,The Insolvency Service,14/07/2017,Travel and Subsistence,CHIEF EXECUTIVE DIVISION                                                                            ,Staff Payment,BA0000306466,5.00,
BEIS,The Insolvency Service,14/07/2017,Travel and Subsistence,CHIEF EXECUTIVE DIVISION                                                                            ,Staff Payment,BA0000306466,15.00,
BEIS,The Insolvency Service,14/07/2017,Travel and Subsistence,CRIMINAL ENFORCEMENT                                                                                ,Staff Payment,BA0000306465,5.00,                      
BEIS,The Insolvency Service,14/07/2017,Travel and Subsistence,CRIMINAL ENFORCEMENT                                                                                ,Staff Payment,BA0000306465,6.10,                      
BEIS,The Insolvency Service,14/07/2017,Travel and Subsistence,CRIMINAL ENFORCEMENT                                                                                ,Staff Payment,BA0000306465,9.00,                      
BEIS,The Insolvency Service,14/07/2017,Travel and Subsistence,CRIMINAL ENFORCEMENT                                                                                ,Staff Payment,BA0000306465,26.10,                      
BEIS,The Insolvency Service,14/07/2017,Travel and Subsistence,CRIMINAL ENFORCEMENT                                                                                ,Staff Payment,BA0000306465,31.50,                      
BEIS,The Insolvency Service,14/07/2017,Travel and Subsistence,CRIMINAL ENFORCEMENT                                                                                ,Staff Payment,BA0000306465,41.40,                      
BEIS,The Insolvency Service,14/07/2017,Travel and Subsistence,CRIMINAL ENFORCEMENT                                                                                ,Staff Payment,BA0000306465,51.30,                      
BEIS,The Insolvency Service,14/07/2017,Travel and Subsistence,CRIMINAL ENFORCEMENT                                                                                ,Staff Payment,BA0000306465,68.40,                      
BEIS,The Insolvency Service,14/07/2017,Travel and Subsistence,CRIMINAL ENFORCEMENT                                                                                ,Staff Payment,BA0000306466,1.60,                      
BEIS,The Insolvency Service,14/07/2017,Travel and Subsistence,CRIMINAL ENFORCEMENT                                                                                ,Staff Payment,BA0000306466,1.80,                      
BEIS,The Insolvency Service,14/07/2017,Travel and Subsistence,CRIMINAL ENFORCEMENT                                                                                ,Staff Payment,BA0000306466,2.25,                      
BEIS,The Insolvency Service,14/07/2017,Travel and Subsistence,CRIMINAL ENFORCEMENT                                                                                ,Staff Payment,BA0000306466,4.45,                      
BEIS,The Insolvency Service,14/07/2017,Travel and Subsistence,CRIMINAL ENFORCEMENT                                                                                ,Staff Payment,BA0000306466,4.50,                      
BEIS,The Insolvency Service,14/07/2017,Travel and Subsistence,CRIMINAL ENFORCEMENT                                                                                ,Staff Payment,BA0000306466,5.00,                      
BEIS,The Insolvency Service,14/07/2017,Travel and Subsistence,CRIMINAL ENFORCEMENT                                                                                ,Staff Payment,BA0000306466,5.00,                      
BEIS,The Insolvency Service,14/07/2017,Travel and Subsistence,CRIMINAL ENFORCEMENT                                                                                ,Staff Payment,BA0000306466,6.00,                      
BEIS,The Insolvency Service,14/07/2017,Travel and Subsistence,CRIMINAL ENFORCEMENT                                                                                ,Staff Payment,BA0000306466,6.30,                      
BEIS,The Insolvency Service,14/07/2017,Travel and Subsistence,CRIMINAL ENFORCEMENT                                                                                ,Staff Payment,BA0000306466,8.10,                      
BEIS,The Insolvency Service,14/07/2017,Travel and Subsistence,CRIMINAL ENFORCEMENT                                                                                ,Staff Payment,BA0000306466,11.70,                      
BEIS,The Insolvency Service,14/07/2017,Travel and Subsistence,CRIMINAL ENFORCEMENT                                                                                ,Staff Payment,BA0000306466,12.60,                      
BEIS,The Insolvency Service,14/07/2017,Travel and Subsistence,CRIMINAL ENFORCEMENT                                                                                ,Staff Payment,BA0000306466,14.57,                      
BEIS,The Insolvency Service,14/07/2017,Travel and Subsistence,CRIMINAL ENFORCEMENT                                                                                ,Staff Payment,BA0000306466,15.00,                      
BEIS,The Insolvency Service,14/07/2017,Travel and Subsistence,CRIMINAL ENFORCEMENT                                                                                ,Staff Payment,BA0000306466,16.65,                      
BEIS,The Insolvency Service,14/07/2017,Travel and Subsistence,CRIMINAL ENFORCEMENT                                                                                ,Staff Payment,BA0000306466,20.25,                      
BEIS,The Insolvency Service,14/07/2017,Travel and Subsistence,CRIMINAL ENFORCEMENT                                                                                ,Staff Payment,BA0000306466,21.60,                      
BEIS,The Insolvency Service,14/07/2017,Travel and Subsistence,CRIMINAL ENFORCEMENT                                                                                ,Staff Payment,BA0000306466,29.25,                      
BEIS,The Insolvency Service,14/07/2017,Travel and Subsistence,CRIMINAL ENFORCEMENT                                                                                ,Staff Payment,BA0000306466,63.00,                      
BEIS,The Insolvency Service,14/07/2017,Travel and Subsistence,CRIMINAL ENFORCEMENT                                                                                ,Staff Payment,BA0000306466,69.75,                      
BEIS,The Insolvency Service,14/07/2017,Travel and Subsistence,CRIMINAL ENFORCEMENT                                                                                ,Staff Payment,BA0000306466,1.35,                      
BEIS,The Insolvency Service,14/07/2017,Travel and Subsistence,CRIMINAL ENFORCEMENT                                                                                ,Staff Payment,BA0000306466,2.70,                      
BEIS,The Insolvency Service,14/07/2017,Travel and Subsistence,CRIMINAL ENFORCEMENT                                                                                ,Staff Payment,BA0000306466,3.70,                      
BEIS,The Insolvency Service,14/07/2017,Travel and Subsistence,CRIMINAL ENFORCEMENT                                                                                ,Staff Payment,BA0000306466,4.00,                      
BEIS,The Insolvency Service,14/07/2017,Travel and Subsistence,CRIMINAL ENFORCEMENT                                                                                ,Staff Payment,BA0000306466,4.05,                      
BEIS,The Insolvency Service,14/07/2017,Travel and Subsistence,CRIMINAL ENFORCEMENT                                                                                ,Staff Payment,BA0000306466,5.00,                      
BEIS,The Insolvency Service,14/07/2017,Travel and Subsistence,CRIMINAL ENFORCEMENT                                                                                ,Staff Payment,BA0000306466,7.00,                      
BEIS,The Insolvency Service,14/07/2017,Travel and Subsistence,CRIMINAL ENFORCEMENT                                                                                ,Staff Payment,BA0000306466,8.00,                      
BEIS,The Insolvency Service,14/07/2017,Travel and Subsistence,CRIMINAL ENFORCEMENT                                                                                ,Staff Payment,BA0000306466,12.00,                      
BEIS,The Insolvency Service,14/07/2017,Travel and Subsistence,CRIMINAL ENFORCEMENT                                                                                ,Staff Payment,BA0000306466,14.50,                      
BEIS,The Insolvency Service,14/07/2017,Travel and Subsistence,CRIMINAL ENFORCEMENT                                                                                ,Staff Payment,BA0000306466,15.00,                      
BEIS,The Insolvency Service,14/07/2017,Travel and Subsistence,CRIMINAL ENFORCEMENT                                                                                ,Staff Payment,BA0000306466,24.00,                      
BEIS,The Insolvency Service,14/07/2017,Travel and Subsistence,CRIMINAL ENFORCEMENT                                                                                ,Staff Payment,BA0000306466,30.15,                      
BEIS,The Insolvency Service,14/07/2017,Travel and Subsistence,CRIMINAL ENFORCEMENT                                                                                ,Staff Payment,BA0000306466,54.00,                      
BEIS,The Insolvency Service,14/07/2017,Travel and Subsistence,CRIMINAL ENFORCEMENT                                                                                ,Staff Payment,BA0000306466,4.10,                      
BEIS,The Insolvency Service,14/07/2017,Travel and Subsistence,CRIMINAL ENFORCEMENT                                                                                ,Staff Payment,BA0000306466,5.00,                      
BEIS,The Insolvency Service,14/07/2017,Travel and Subsistence,CRIMINAL ENFORCEMENT                                                                                ,Staff Payment,BA0000306466,11.25,                      
BEIS,The Insolvency Service,14/07/2017,Travel and Subsistence,EXTERNAL AFFAIRS                                                                                    ,Staff Payment,BA0000306465,5.00,
BEIS,The Insolvency Service,14/07/2017,Travel and Subsistence,EXTERNAL AFFAIRS                                                                                    ,Staff Payment,BA0000306465,15.00,
BEIS,The Insolvency Service,14/07/2017,Travel and Subsistence,EXTERNAL AFFAIRS                                                                                    ,Staff Payment,BA0000306465,16.20,
BEIS,The Insolvency Service,14/07/2017,Travel and Subsistence,EXTERNAL AFFAIRS                                                                                    ,Staff Payment,BA0000306465,24.67,
BEIS,The Insolvency Service,14/07/2017,Travel and Subsistence,EXTERNAL AFFAIRS                                                                                    ,Staff Payment,BA0000306465,68.99,
BEIS,The Insolvency Service,14/07/2017,Travel and Subsistence,EXTERNAL AFFAIRS                                                                                    ,Staff Payment,BA0000306465,239.00,
BEIS,The Insolvency Service,14/07/2017,Travel and Subsistence,INVESTIGATIONS & ENFORCEMENT                                                                        ,Staff Payment,BA0000306465,2.50,
BEIS,The Insolvency Service,14/07/2017,Travel and Subsistence,INVESTIGATIONS & ENFORCEMENT                                                                        ,Staff Payment,BA0000306465,2.70,
BEIS,The Insolvency Service,14/07/2017,Travel and Subsistence,INVESTIGATIONS & ENFORCEMENT                                                                        ,Staff Payment,BA0000306465,4.00,
BEIS,The Insolvency Service,14/07/2017,Travel and Subsistence,INVESTIGATIONS & ENFORCEMENT                                                                        ,Staff Payment,BA0000306465,4.05,
BEIS,The Insolvency Service,14/07/2017,Travel and Subsistence,INVESTIGATIONS & ENFORCEMENT                                                                        ,Staff Payment,BA0000306465,11.70,
BEIS,The Insolvency Service,14/07/2017,Travel and Subsistence,INVESTIGATIONS & ENFORCEMENT                                                                        ,Staff Payment,BA0000306465,1.85,
BEIS,The Insolvency Service,14/07/2017,Travel and Subsistence,INVESTIGATIONS & ENFORCEMENT                                                                        ,Staff Payment,BA0000306465,5.00,
BEIS,The Insolvency Service,14/07/2017,Travel and Subsistence,INVESTIGATIONS & ENFORCEMENT                                                                        ,Staff Payment,BA0000306465,5.70,
BEIS,The Insolvency Service,14/07/2017,Travel and Subsistence,INVESTIGATIONS & ENFORCEMENT                                                                        ,Staff Payment,BA0000306465,2.40,
BEIS,The Insolvency Service,14/07/2017,Travel and Subsistence,INVESTIGATIONS & ENFORCEMENT                                                                        ,Staff Payment,BA0000306465,1.70,
BEIS,The Insolvency Service,14/07/2017,Travel and Subsistence,INVESTIGATIONS & ENFORCEMENT                                                                        ,Staff Payment,BA0000306465,4.50,
BEIS,The Insolvency Service,14/07/2017,Travel and Subsistence,INVESTIGATIONS & ENFORCEMENT                                                                        ,Staff Payment,BA0000306465,19.50,
BEIS,The Insolvency Service,14/07/2017,Travel and Subsistence,INVESTIGATIONS & ENFORCEMENT                                                                        ,Staff Payment,BA0000306465,4.80,
BEIS,The Insolvency Service,14/07/2017,Travel and Subsistence,INVESTIGATIONS & ENFORCEMENT                                                                        ,Staff Payment,BA0000306466,5.00,                      
BEIS,The Insolvency Service,14/07/2017,Travel and Subsistence,INVESTIGATIONS & ENFORCEMENT                                                                        ,Staff Payment,BA0000306466,9.10,                      
BEIS,The Insolvency Service,14/07/2017,Travel and Subsistence,INVESTIGATIONS & ENFORCEMENT                                                                        ,Staff Payment,BA0000306466,25.99,                      
BEIS,The Insolvency Service,14/07/2017,Travel and Subsistence,INVESTIGATIONS & ENFORCEMENT                                                                        ,Staff Payment,BA0000306466,3.80,
BEIS,The Insolvency Service,14/07/2017,Travel and Subsistence,INVESTIGATIONS & ENFORCEMENT                                                                        ,Staff Payment,BA0000306466,4.20,
BEIS,The Insolvency Service,14/07/2017,Travel and Subsistence,INVESTIGATIONS & ENFORCEMENT                                                                        ,Staff Payment,BA0000306466,4.70,
BEIS,The Insolvency Service,14/07/2017,Travel and Subsistence,INVESTIGATIONS & ENFORCEMENT                                                                        ,Staff Payment,BA0000306466,4.90,
BEIS,The Insolvency Service,14/07/2017,Travel and Subsistence,OFFICIAL RECEIVER SERVICES                                                                          ,Staff Payment,BA0000306465,6.00,
BEIS,The Insolvency Service,14/07/2017,Travel and Subsistence,OFFICIAL RECEIVER SERVICES                                                                          ,Staff Payment,BA0000306466,1.00,
BEIS,The Insolvency Service,14/07/2017,Travel and Subsistence,OFFICIAL RECEIVER SERVICES                                                                          ,Staff Payment,BA0000306466,38.70,
BEIS,The Insolvency Service,14/07/2017,Travel and Subsistence,OFFICIAL RECEIVER SERVICES                                                                          ,Staff Payment,BA0000306466,3.40,
BEIS,The Insolvency Service,14/07/2017,Travel and Subsistence,OFFICIAL RECEIVER SERVICES                                                                          ,Staff Payment,BA0000306466,3.70,
BEIS,The Insolvency Service,14/07/2017,Travel and Subsistence,OFFICIAL RECEIVER SERVICES                                                                          ,Staff Payment,BA0000306466,4.60,
BEIS,The Insolvency Service,14/07/2017,Travel and Subsistence,OFFICIAL RECEIVER SERVICES                                                                          ,Staff Payment,BA0000306466,5.00,
BEIS,The Insolvency Service,14/07/2017,Travel and Subsistence,OFFICIAL RECEIVER SERVICES                                                                          ,Staff Payment,BA0000306466,51.75,
BEIS,The Insolvency Service,14/07/2017,Travel and Subsistence,OFFICIAL RECEIVER SERVICES                                                                          ,Staff Payment,BA0000306466,3.40,
BEIS,The Insolvency Service,14/07/2017,Travel and Subsistence,OFFICIAL RECEIVER SERVICES                                                                          ,Staff Payment,BA0000306466,5.00,
BEIS,The Insolvency Service,14/07/2017,Travel and Subsistence,OFFICIAL RECEIVER SERVICES                                                                          ,Staff Payment,BA0000306466,48.60,
BEIS,The Insolvency Service,14/07/2017,Travel and Subsistence,OFFICIAL RECEIVER SERVICES                                                                          ,Staff Payment,BA0000306466,5.00,
BEIS,The Insolvency Service,14/07/2017,Travel and Subsistence,OFFICIAL RECEIVER SERVICES                                                                          ,Staff Payment,BA0000306466,18.10,
BEIS,The Insolvency Service,14/07/2017,Travel and Subsistence,OFFICIAL RECEIVER SERVICES                                                                          ,Staff Payment,BA0000306466,60.30,
BEIS,The Insolvency Service,14/07/2017,Travel and Subsistence,OFFICIAL RECEIVER SERVICES                                                                          ,Staff Payment,BA0000306466,2.00,
